Workbook

Sheet Version (hidden)
A1: Service | B1: =MID(CELL("dateiname"),FIND("[",CELL("dateiname"))+1,FIND("]",CELL("dateiname"))-FIND("[",CELL("dateiname"))-1) -> Auslegungstool Schlitzluftdurchlass SAL.xlsm
A2: Version: | B2: 1.0

Sheet Hinweise zum Programm
A1: Hinweise zur Bedienung
A3: Allgemeine Hinweise:
A4: Das Auslegungstool schlitze dient als Hilfsmittel zur Technischen Planung der emcoair SAL-Typen.
A6: Auslegung:
A7: Im Tabellenblatt "Auslegung" erfolgt die Festlegung des gewünschten Auslasstyps. Bei Eingabe der Vorgabedaten, wie z.B. dem benötigten Luftvolumenstrom werden die technischen Daten des gewählten Luftdurchlasses berechnet. Hierbei geht die technische Auslegung davon aus, dass zwei parallel verlaufende Schlitzreihen Luftströmungen mit in entgegengesetzter Richtung gerichteten Luftströmungen beaufschlagt sind.
A9: Strömungsformen:
A10: Die im Tabellenblatt "Auslegung" ermittelten Strömungsgeschwindigkeiten gelten für einen deckenbündig montierten Luftdurchlass mit horizontaler Ausblascharakteristik.
A12: Hinweise zur Funktion:
A13: Für eine ordnungsgemäße Funktion des Auslegungstools muss die Ausführung von Makros und MS Excel aktiviert sein. Die Aktivierung von Makros erfolgt im Menü Makrosicherheit.
A14: Einstellung unter MS Excel 97-2003: Extras → Makro → Sicherheit
A15: Einstellung unter MS Excel 2007: Entwicklertools* → Makrosicherheit
A16: *Das Menü Entwicklertools muss unter Umständen eingefügt werden unter Excel-Optionen

Sheet Auslegung
A1: Auslegung Kampmann Schlitzdurchlässe
A3: Eingabefelder sind gelb gekennzeichnet
A4: Ergebnisfelder sind blau gekennzeichnet
A6: Vorgaben
A7: Strömungstechnik | B7: Symbol | C7: Einheit | D7: Wert
A8: Bezeichung | B8: Symbol | C8: Einheit
B9: L | C9: mm
B10: L | C10: mm
B11: L | C11: mm
A12: Durchlass Typ | D12: SAL 35 | E12: SAL 35
D13: SAL 35
D14: SAL 50
D15: SAL-S
A18: Anzahl Schlitze | B18: n | C18: 1 | D18: 2 | E18: 1
D19: 1
D20: 2
D21: 3
D22: 4
D23: =IF(D12="SAL-S","",5) -> 5
A25: Schlitzlänge | B25: L | C25: mm | D25: 1300 | E25: 500
D26: =IF(OR($D$12="SAL 35",$D$12="SAL-S"),500,600) -> 500
D27: =IF(OR($D$12="SAL 35",$D$12="SAL-S"),600,750) -> 600
D28: =IF(OR($D$12="SAL 35",$D$12="SAL-S"),700,900) -> 700
D29: =IF(OR($D$12="SAL 35",$D$12="SAL-S"),800,1050) -> 800
D30: =IF(OR($D$12="SAL 35",$D$12="SAL-S"),900,1200) -> 900
D31: =IF(OR($D$12="SAL 35",$D$12="SAL-S"),1000,1350) -> 1000
D32: =IF(OR($D$12="SAL 35",$D$12="SAL-S"),1100,1500) -> 1100
D33: =IF(OR($D$12="SAL 35",$D$12="SAL-S"),1200,1650) -> 1200
D34: =IF(OR($D$12="SAL 35",$D$12="SAL-S"),1300,1800) -> 1300
D35: =IF(OR($D$12="SAL 35",$D$12="SAL-S"),1400,1950) -> 1400
D36: =IF(OR($D$12="SAL 35",$D$12="SAL-S"),1500,"") -> 1500
D37: =IF(OR($D$12="SAL 35",$D$12="SAL-S"),1600,"") -> 1600
D38: =IF(OR($D$12="SAL 35",$D$12="SAL-S"),1700,"") -> 1700
D39: =IF(OR($D$12="SAL 35",$D$12="SAL-S"),1800,"") -> 1800
D40: =IF(OR($D$12="SAL 35",$D$12="SAL-S"),1900,"") -> 1900
D41: =IF(OR($D$12="SAL 35",$D$12="SAL-S"),2000,"") -> 2000
A42: Walzenstellung | C42: [-] | D42: A1/F6 hochdiffus | F42: 161
D43: A1/F6 hochdiffus | E43: 1
D44: =IF(D12<>"SAL-S","CD","") -> CD | E44: 3
D45: =IF(D12<>"SAL-S","A1 oder F6 einseitig","") -> A1 oder F6 einseitig | E45: 4
D47: =IF(D18>1,"A1/F6 divergent","") -> A1/F6 divergent | E47: 2
D48: =IF(D42="A1/F6 hochdiffus",1,IF(D42="A1/F6 divergent",2,IF(D42="CD",3,IF(D42="A1 oder F6 einseitig",4,"")))) -> 1
A49: Luftvolumenstrom | B49: V·SUP | C49: m³/h | D49: 333
A50: max. Luftgeschwindigkeit im Aufenthaltsbereich | B50: vMax | C50: m/s | D50: 0.2
A51: Temperatur Zuluft | B51: tSUP | C51: °C | D51: 20
A52: Temperatur Raum | B52: tRaum | C52: °C | D52: 20
A53: Raumdaten
A54: Raumhöhe | B54: H1 | C54: m | D54: 4
A55: Obergrenze Aufenthaltsbereich | B55: H2 | C55: m | D55: 1.8 | I55: 1 | J55: Sichtbare Breite, ZS-Profil | K55: =Grunddaten!$J$63 -> 69 | L55: mm
A56: Raumlänge | B56: LR | C56: m | D56: 10 | I56: 2 | J56: Sichtbare Breite, ZB-Profil | K56: =Grunddaten!$K$63 -> 92 | L56: mm
A57: Raumbreite | B57: BR | C57: m | D57: 10 | I57: 3 | J57: Anzahl Anschlussstutzen | K57: =Grunddaten!$R$63 -> 1 | L57: mm
A58: Abstand Durchlass zur nächstgelegenen Wand* | B58: a | C58: m | D58: 1 | I58: 4 | J58: Durchmesser Anschlussstutzen | K58: =Grunddaten!$Q$63 -> 138 | L58: mm
A59: kleinster Abstand zwischen 2 Durchlässen | B59: smin | C59: m | D59: 10 | I59: 5 | J59: Gesamthöhe Durchlass | K59: =Grunddaten!$M$63 -> 242 | L59: mm
A60: * In Strömungsrichtung gesehen | I60: 6 | J60: Breite Anschlusskasten | K60: =Grunddaten!L63 -> 120 | L60: mm
A61: Akustikdaten | I61: 7 | J61: Minimaler Volumenstrom | K61: =Grunddaten!$N$63 -> 60 | L61: m³/h
A62: Raumart nach VDI 2081 | D62: Einzelbüro | I62: 8 | J62: Maximaler Volumenstrom | K62: =Grunddaten!$O$66 -> 286 | L62: m³/h
C63: Einzelbüro
C64: Großraumbüro
C65: Werkstätten
C66: Ruheraum, Pausenraum
C67: Untersuchungsraum Krankenhaus
C68: Rundfunk-, Fernsehstudio
C69: Chemielabor
C70: Wasch- und WC-Raum, Umkleide
C71: Schwimmbad
C72: EDV-Raum
C73: Konzertsaal
C74: Lesesaal
C75: Museum
C76: Küche
C77: Theater, Kino
C78: Klassen- Seminarraum
C79: Gaststätte
C80: kein Typ
C81: Konferenzraum
C82: Hotelzimmer
C83: Hörsaal
C84: Bettenzimmer Krankenhaus
C85: Verkaufsraum
C86: Sporthalle | I86: 8 | J86: Maximaler Volumenstrom | K86: =Grunddaten!$O$63 -> 220 | L86: m³/h
A87: Betrachteter Durchlass | D87: Zuluft
D88: Zuluft
D89: Abluft
A90: Abstand zur Schallquelle | B90: r | C90: m | D90: 2
A91: Zusatzdaten
A92: Funktion | F92: =VLOOKUP(B92,Eingabe!$A$45:$B$48,2,FALSE) ->  | G92: =VLOOKUP($B$92,$B$93:$G$95,6,0) -> Z
B93: =IF(D12=500,"Zuluft","") ->  | G93: Z
B94: =IF(D12=500,"Abluft","") ->  | G94: A
B95: =IF(D12>500,"Zuluft/Abluft-Kombination","") -> Zuluft/Abluft-Kombination | G95: K
A96: Farbe Abdeckprofil und Endwinkel | B96: 9010 | F96: =VLOOKUP(B96,Eingabe!A45:B48,2,FALSE) ->  | G96: =$B$96 -> 9010
A97: Farbe Luftlenkelement | B97: schwarz | G97: =VLOOKUP(B97,B98:G100,6,FALSE) -> S
B98: schwarz | G98: S
B99: weiß | G99: W
B100: grau | G100: G
A101: Einstellung Luftlenkelement | B101: Deckenstrahl D / E | G101: =VLOOKUP(B101,B102:G105,6,FALSE) -> D
B102: Deckenstrahl D / E | G102: D
B103: Sondereinstellung | G103: S
A105: Werkstoff Anschlusskasten | B105: Stahl verzinkt | G105: V
B106: Stahl verzinkt
A107: frontseitig bedienbare Drossel | B107: ohne | F107: =VLOOKUP(B107,Eingabe!$A$45:$B$51,2,FALSE) ->  | G107: =VLOOKUP(B107,B108:G110,6,FALSE) -> 0
B108: mit | G108: 1
B109: ohne | G109: 0
A110: Innenauskleidung | B110: Baustoffklasse B1 (Standard) | G110: =VLOOKUP(B110,B111:G114,6,FALSE) -> B1
B111: Baustoffklasse B1 (Standard) | G111: B1
B112: Baustoffklasse A2 (optional) | G112: A2
A114: Merkmalschlüssel | B114: =CONCATENATE(1,"KSW","0",D18,G114,G92,"A",G96,G97,G101,G105,G107,G110,1,G115) -> 1KSW02SAL 35ZA9010SDV0B11100 | G114: =IF(D12<1000,CONCATENATE(0,D12),D12) -> SAL 35
G115: =IF(K57=78,"080",100) -> 100
A116: Berechnung strömungstechnische und Akustische Daten
A117: Druckverlust | B117: Dpt | C117: Pa | D117: =IF(D87="Zuluft",Grunddaten!$I$63,"") -> 28.03784568
A118: =IF(D51>D52,"Vertikale Eindringtiefe","kritischer Strahlweg") -> kritischer Strahlweg | B118: xkr. bzw. ymax. | C118: m | D118: =IF(D87="Zuluft",IF(D51>D52,xkr._vx!M32,xkr._vx!$F$11),"") -> >Raumlänge
A119: Laufweg bis Fußbodenbereich | B119: xx | C119: m | D119: =xkr._vx!L24 -> 5.5
A120: Laufweg bis Aufenthaltsbereich nach Stoßpunkt | B120: xx+y | C120: m | D120: =xkr._vx!L26 -> 12.2
A121: Laufweg bis Aufenthaltsbereich nach xkrit | B121: xxkr | C121: m | D121: =IF(D51>=D52,"Heizfall",xkr._vx!L28) -> Heizfall
A122: Geschwindigkeit im Fußbodenbereich in Wandnähe | B122: vx1 | C122: m/s | D122: =IF(D87="Zuluft",IF(AND(D42="CD",D51>=D52),"Walzenstellung!",IF(xkr._vx!$N$24< 0.1,"< 0,1",xkr._vx!$N$24)),"") -> 0.3882517517
A123: Zugluftrisiko am Fußboden** | B123: DR1 | C123: % | D123: =IF(D87="Zuluft",IF(AND(D42="CD",$D$51>=$D$52),"Walzenstellung!",DR!$C$16),"") -> 63.52860702
A124: =IF(AND(D42="CD",D51>D52),CONCATENATE("Geschwindigkeit in ",$D$55," m Höhe im Wandbereich"),IF(D42="CD","Maximalgeschwindigkeit unterhalb des Druchlasses",IF(D59=0,"","Geschwindigkeit im Aufenthaltsbereich*"))) -> Geschwindigkeit im Aufenthaltsbereich* | B124: =IF(AND(D42="CD",D51>D52),"vx2",IF(D59=0,"","vx2")) -> vx2 | C124: =IF(AND(D42="CD",D51>D52),"m/s",IF(D59=0,"",IF(D52<=D51,"m","m/s"))) -> m | D124: =IF(AND(D42="CD",D51>D52),xkr._vx!P68,IF(D59=0,"",IF(D87="Zuluft",IF(D42="CD",xkr._vx!O31,xkr._vx!P26),""))) -> 0.1908572402
A125: =IF(AND(D42="CD",D51>D52),"",IF(D59=0,"","Zugluftrisiko im Aufenthaltsbereich**")) -> Zugluftrisiko im Aufenthaltsbereich** | B125: =IF(AND(D42="CD",D51>D52),"",IF(D59=0,"","DR2")) -> DR2 | C125: =IF(AND(D42="CD",D51>D52),"",IF(D59=0,"","%")) -> % | D125: =IF(AND(D42="CD",D51>D52),"",IF(D59=0,"",IF(D87="Zuluft",DR!$D$24,""))) -> 24.77187013
A126: Geschwindigkeit nach Ablösen an Xkr. | B126: vx3 | C126: m/s | D126: =IF(D87="Zuluft",IF($D$51>$D$52,"Heizfall",IF(D42="CD","Walzenstellung!",xkr._vx!O28)),"") -> <0,1
A127: Zugluftrisiko nach Ablösepunkt** | B127: DR3 | C127: % | D127: =IF(D87="Zuluft",IF(D42="CD","Walzenstellung!",IF($D$51>$D$52,"Heizfall",DR!$C$32)),"") -> 0
A128: Resultierende Raumkategorie | B128: RAL | C128: [-] | D128: =IF(D87="Zuluft",IF(D12="MPC-V","a. Anf",IF(MAX(D123,D125,D127)<9.95,"A",IF(MAX(D123,D125,D127)<19.95,"B",IF(MAX(D123,D125,D127)<29.95,"C","Außerhalb C")))),"") -> Außerhalb C
A129: =CONCATENATE("Schallleistungspegel, ",D87,"durchlass") -> Schallleistungspegel, Zuluftdurchlass | B129: LWA_SUP/ETA | C129: dB(A) | D129: =IF(D87="Zuluft",IF(Lw!$E$40<25,"<25",Lw!$E$40),"") -> 41.76306945
A130: Schallleistungspegel, Zahlenwert Zuluft + Abluft | D130: =Lw!$E$40 -> 41.76306945 | E130: =Lw!$E$40 -> 41.76306945
A131: =CONCATENATE("Schallldruckpegel in ",D90,"m Entfernung, ",D87,"durchlass") -> Schallldruckpegel in 2m Entfernung, Zuluftdurchlass | B131: LPA_SUP/ETA | C131: dB(A) | D131: =IF(D87="Zuluft",IF(D129="<25","<25",IF(D129+10*LOG(Lw!$H$7/(4*PI()*Auslegung!D90^2)+4/(Lw!$J$7))>=25,D129+10*LOG(Lw!$H$7/(4*PI()*Auslegung!D90^2)+4/(Lw!$J$7)),"<25")),"") -> 32.18694675
A132: Schalldruckpegel rechnerisch | D132: =IF(10*LOG(10^(D130/10)+10^(E130/10))<25,"<25",10*LOG(10^(D130/10)+10^(E130/10))) -> 44.77336941
A133: Summen-Schallldruckpegel im betrachteten Punkt | B133: LPA | C133: dB(A) | D133: =IFERROR(IF(E130-D130>6,MAX(E130,D130),D132),IF(E131="a. Anf",D131,IF(AND(D131="<25",E131="<25"),"<25","a. Anf"))) -> 44.77336941
A134: *Gilt für Eintritt der Luftströmung in den Aufenthaltbereich nach dem Stoßpunkt
A135: ** Berechnung gemäß DIN EN ISO 7730
A137: Oktavspektrum Schallleistung | B137: LW_Okt | C137: dB
B138: LW_125 | C138: dB | D138: =IF($D$87="Zuluft",IF(OR($D$130<25,D12="SAL-S"),"",IFERROR(Lw!$I$50,"a. Anf")),"") -> 43.4573863
B139: LW_250 | C139: dB | D139: =IF($D$87="Zuluft",IF(OR($D$130<25,D12="SAL-S"),"",IFERROR(Lw!$J$50,"a. Anf")),"") -> 47.5829627
B140: LW_500 | C140: dB | D140: =IF($D$87="Zuluft",IF(OR($D$130<25,D12="SAL-S"),"",IFERROR(Lw!$K$50,"a. Anf")),"") -> 38.14749573
B141: LW_1000 | C141: dB | D141: =IF($D$87="Zuluft",IF(OR($D$130<25,D12="SAL-S"),"",IFERROR(Lw!$L$50,"a. Anf")),"") -> 33.37663161
B142: LW_2000 | C142: dB | D142: =IF($D$87="Zuluft",IF(OR($D$130<25,D12="SAL-S"),"",IFERROR(Lw!$M$50,"a. Anf")),"") -> 26.30590713
B143: LW_4000 | C143: dB | D143: =IF($D$87="Zuluft",IF(OR($D$130<25,D12="SAL-S"),"",IFERROR(Lw!$N$50,"a. Anf")),"") -> 17.49170282
B144: LW_8000 | C144: dB | D144: =IF($D$87="Zuluft",IF(OR($D$130<25,D12="SAL-S"),"",IFERROR(Lw!$O$50,"a. Anf")),"") -> 10.29071854
A146: Änderungen vorbehalten
A147: Stand: | E147: =IF(D12=500,KSW(),"") -> 
A148: =Grunddaten!C58 -> 2020-10-30

Sheet Funktion (hidden)

Sheet Maße (hidden)

Sheet Datenblatt
A2: Typ | B2: =Auslegung!$D$12 -> SAL 35 | I2: =TODAY() -> 2021-02-02
A3: Projekt | B3: bitte Projektnummer angeben
A5: Definition:
A6: Durchlass, Typ: | B6: =Auslegung!$D$12 -> SAL 35 | C6: Länge: | D6: =Auslegung!$D$25 -> 1300 | E6: mm | F6: Schlitzanzahl: | H6: =Auslegung!$D$18 -> 2
A7: Schlitzanzahl: | B7: =Auslegung!D18 -> 2 | C7: Farbe Abdeckprofil: | E7: =Auslegung!B96 -> 9010
A8: Innenauskleidung: | B8: =Auslegung!G110 -> B1 | C8: Drossel fb: | E8: =Auslegung!B107 -> ohne
A10: Beschreibung: Zu- und Abluftschlitzdurchlass in ein- oder mehrreihiger Ausführung aus Aluminium-Strangpressprofilen mit eingesetzten, exzentrisch gelagerten Luftlenkwalzen und integrierten Gleichrichtern aus Kunststoff (ABS). Die Walzen können zwischen 0 und 360 Grad stufenlos gedreht werden. Somit können sowohl der Austrittsquerschnitt, als auch die Luftstrahlrichtung in jeder gewünschten Weise geregelt und beeinflusst werden.
A11: Einsatzbereich
A12: Minimalvolumenstrom | B12: V°min | C12: =Auslegung!K$61 -> 60 | D12: m³/h
A13: Maximalvolumenstrom | B13: V°max | C13: =Auslegung!$K$62 -> 286 | D13: m³/h
A15: technische Vorgaben | F15: Raumdaten
A16: Luftvolumenstrom Zuluft | B16: V·SUP | C16: =Auslegung!D49 -> 333 | D16: m³/h | F16: Raumhöhe | G16: =Auslegung!D54 -> 4 | H16: m
A17: Temperatur Zuluft | B17: tZUL | C17: =Auslegung!D51 -> 20 | D17: °C | F17: Raumbreite | G17: =Auslegung!D57 -> 10 | H17: m
A18: Temperatur Raum | B18: tRAUM | C18: =Auslegung!D52 -> 20 | D18: °C | F18: Raumlänge | G18: =Auslegung!D56 -> 10 | H18: m
A19: =Auslegung!A58 -> Abstand Durchlass zur nächstgelegenen Wand* | B19: =Auslegung!B58 -> a | C19: =Auslegung!D58 -> 1 | D19: m | F19: Nutzungsart | G19: =Auslegung!D62 -> Einzelbüro
A20: =Auslegung!A59 -> kleinster Abstand zwischen 2 Durchlässen | B20: smin | C20: =Auslegung!D59 -> 10 | D20: m
A22: technische Daten
A23: =CONCATENATE("Druckverlust ",Auslegung!D87,"durchlass") -> Druckverlust Zuluftdurchlass | B23: Dp_SUP/ETA | C23: =IF(Auslegung!$D$117="",Auslegung!$E$117,Auslegung!$D$117) -> 28.03784568 | E23: Pa
A24: kritischer Strahlweg | B24: xkr. | C24: =Auslegung!D118 -> >Raumlänge | E24: m
A25: =Auslegung!A122 -> Geschwindigkeit im Fußbodenbereich in Wandnähe | B25: vx1 | C25: =Auslegung!D122 -> 0.3882517517 | E25: m/s
A26: =Auslegung!A123 -> Zugluftrisiko am Fußboden** | B26: DR1 | C26: =Auslegung!$D$123 -> 63.52860702 | E26: %
A27: =Auslegung!A124 -> Geschwindigkeit im Aufenthaltsbereich* | B27: =Auslegung!B124 -> vx2 | C27: =Auslegung!$D$124 -> 0.1908572402 | E27: =Auslegung!C124 -> m
A28: =Auslegung!A125 -> Zugluftrisiko im Aufenthaltsbereich** | B28: =Auslegung!B125 -> DR2 | C28: =Auslegung!$D$125 -> 24.77187013 | E28: =Auslegung!C125 -> %
A29: =Auslegung!A126 -> Geschwindigkeit nach Ablösen an Xkr. | B29: vx3 | C29: =Auslegung!$D$126 -> <0,1 | E29: m/s
A30: =Auslegung!A127 -> Zugluftrisiko nach Ablösepunkt** | B30: DR3 | C30: =Auslegung!$D$127 -> 0 | E30: %
A31: Raumkategorie** | B31: RAL | C31: =Auslegung!D128 -> Außerhalb C | E31: ="-/-" -> -/- | F31: Maße
A32: =Auslegung!$A$129 -> Schallleistungspegel, Zuluftdurchlass | B32: LWA_SUP/ETA | C32: =IF(Auslegung!$D$129="",Auslegung!$E$129,Auslegung!$D$129) -> 41.76306945 | E32: dB(A) | F32: =Auslegung!J55 -> Sichtbare Breite, ZS-Profil | H32: =Auslegung!K55 -> 69 | I32: mm
A33: =Auslegung!$A$131 -> Schallldruckpegel in 2m Entfernung, Zuluftdurchlass | B33: LPA_SUP | C33: =IF(Auslegung!$D$131="",Auslegung!$E$131,Auslegung!$D$131) -> 32.18694675 | E33: dB(A) | F33: =Auslegung!J56 -> Sichtbare Breite, ZB-Profil | H33: =Auslegung!K56 -> 92 | I33: mm
F34: =Auslegung!J59 -> Gesamthöhe Durchlass | H34: =Auslegung!K59 -> 242 | I34: mm
F35: =Auslegung!J57 -> Anzahl Anschlussstutzen | H35: =Auslegung!K57 -> 1 | I35: mm
A36: *Gilt für Eintritt der Luftströmung in den Aufenthaltbereich nach dem Stoßpunkt | F36: Stutzendurchmesser | H36: =Auslegung!$K$58 -> 138 | I36: mm
A37: ** Raumkategorie nach DIN EN ISO 7730: DR<10 % = A; DR<20 % = B; DR<30 % = C
A40: Oktavspektrum Schallleistungspegel | B40: f [Hz] | C40: 125 | D40: 250 | E40: 500 | F40: 1000 | G40: 2000 | H40: 4000 | I40: 8000
A41: =Auslegung!D87 -> Zuluft | B41: LWA_Okt | C41: =IF(Auslegung!$D$138="",Auslegung!$E$138,Auslegung!$D$138) -> 43.4573863 | D41: =IF(Auslegung!$D$139="",Auslegung!$E$139,Auslegung!$D$139) -> 47.5829627 | E41: =IF(Auslegung!$D$140="",Auslegung!$E$140,Auslegung!$D$140) -> 38.14749573 | F41: =IF(Auslegung!$D$141="",Auslegung!$E$141,Auslegung!$D$141) -> 33.37663161 | G41: =IF(Auslegung!$D$142="",Auslegung!$E$142,Auslegung!$D$142) -> 26.30590713 | H41: =IF(Auslegung!$D$143="",Auslegung!$E$143,Auslegung!$D$143) -> 17.49170282 | I41: =IF(Auslegung!$D$144="",Auslegung!$E$144,Auslegung!$D$144) -> 10.29071854
I43: technische Änderungen vorbehalten
H44: Stand: | I44: =Grunddaten!C58 -> 2020-10-30

Sheet Grunddaten (hidden)
A1: Typ | B1: Walzenstellung* | C1: Schlitzanzahl | D1: Code | E1: Abs. Volumenstrom | F1: spez. Volumenstrom | G1: Konstanten Druckverlust | I1: Druckverlust | J1: Breite mit ZS Profil | K1: Breite mit ZB Profil | L1: Breite AK | M1: Gesamthöhe | N1: Einsatzbereich | Q1: Stutzen | S1: Zeta-Abluft | T1: Abmessungen | W1: Volumenstrom
C2: n | E2: V°abs | F2: V°spez | G2: K011 | H2: K012 | I2: Dptot | J2: bs | K2: bz | L2: bak | N2: V°min | O2: V°max | Q2: Durchmesser | R2: Anzahl | S2: z | T2: Höhe AK | U2: Breite | V2: D Stutzen | W2: Minimal | X2: Maximal
C3: 1 | E3: m³/h | F3: m³/hm | G3: 1 | H3: 1 | I3: Pa | J3: mm | K3: mm | L3: mm | N3: 1 | O3: 1 | S3: 1 | T3: mm | U3: mm | V3: mm | W3: m³/h | X3: m³/h
A4: SAL 35 | B4: 1 | C4: 1 | D4: =CONCATENATE(A4,B4,C4) -> SAL 3511 | E4: =Auslegung!$D$49 -> 333 | F4: =E4/(C4*Auslegung!$D$25/1000) -> 256.1538462 | G4: ='SAL35-CAP'!$C$40 -> 0.00252 | H4: ='SAL35-CAP'!$C$41 -> 1.92 | I4: =G4*F4^H4 -> 106.1016732 | J4: 36 | K4: 61 | L4: 88 | M4: 227 | N4: 50 | O4: 115 | Q4: 123 | R4: =IF(Auslegung!$D$25<=1500,1,2) -> 1
A5: SAL 35 | B5: 1 | C5: 2 | D5: =CONCATENATE(A5,B5,C5) -> SAL 3512 | E5: =Auslegung!$D$49 -> 333 | F5: =E5/(C5*Auslegung!$D$25/1000) -> 128.0769231 | G5: ='SAL35-CAP'!$C$40 -> 0.00252 | H5: ='SAL35-CAP'!$C$41 -> 1.92 | I5: =G5*F5^H5 -> 28.03784568 | J5: 69 | K5: 92 | L5: 120 | M5: 242 | N5: 60 | O5: 220 | Q5: 138 | R5: =IF(Auslegung!$D$25<=1500,1,2) -> 1
A6: SAL 35 | B6: 1 | C6: 3 | D6: SAL 3513 | E6: =Auslegung!$D$49 -> 333 | F6: =E6/(C6*Auslegung!$D$25/1000) -> 85.38461538 | G6: ='SAL35-CAP'!$C$40 -> 0.00252 | H6: ='SAL35-CAP'!$C$41 -> 1.92 | I6: 12.87210055 | J6: 101 | K6: 126 | L6: 152 | M6: 262 | N6: 90 | O6: 350 | Q6: 158 | R6: =IF(Auslegung!$D$25<=1500,1,2) -> 1
A7: SAL 35 | B7: 1 | C7: 4 | D7: SAL 3514 | E7: =Auslegung!$D$49 -> 333 | F7: =E7/(C7*Auslegung!$D$25/1000) -> 64.03846154 | G7: ='SAL35-CAP'!$C$40 -> 0.00252 | H7: ='SAL35-CAP'!$C$41 -> 1.92 | I7: 7.409127175 | J7: 134 | K7: 158 | L7: 184 | M7: 302 | N7: 150 | O7: 480 | Q7: 198 | R7: =IF(Auslegung!$D$25<=1500,1,2) -> 1
A8: SAL 35 | B8: 1 | C8: 5 | D8: SAL 3515 | E8: =Auslegung!$D$49 -> 333 | F8: =E8/(C8*Auslegung!$D$25/1000) -> 51.23076923 | G8: ='SAL35-CAP'!$C$40 -> 0.00252 | H8: ='SAL35-CAP'!$C$41 -> 1.92 | I8: 4.827250368 | J8: 168 | K8: 192 | L8: 218 | M8: 328 | N8: 200 | O8: 550 | Q8: 222 | R8: =IF(Auslegung!$D$25<=1500,1,2) -> 1
A9: SAL 35 | B9: 2 | C9: 1 | D9: SAL 3521 | E9: =Auslegung!$D$49 -> 333 | F9: =E9/(C9*Auslegung!$D$25/1000) -> 256.1538462 | G9: ='SAL35-CAP'!$C$40 -> 0.00252 | H9: ='SAL35-CAP'!$C$41 -> 1.92 | I9: =G9*F9^H9 -> 106.1016732 | J9: 36 | K9: 61 | L9: 88 | M9: 227 | N9: 40 | O9: 110 | Q9: 123 | R9: =IF(Auslegung!$D$25<=1500,1,2) -> 1
A10: SAL 35 | B10: 2 | C10: 2 | D10: SAL 3522 | E10: =Auslegung!$D$49 -> 333 | F10: =E10/(C10*Auslegung!$D$25/1000) -> 128.0769231 | G10: ='SAL35-CAP'!$C$40 -> 0.00252 | H10: ='SAL35-CAP'!$C$41 -> 1.92 | I10: =G10*F10^H10 -> 28.03784568 | J10: 69 | K10: 92 | L10: 120 | M10: 242 | N10: 60 | O10: 220 | Q10: 138 | R10: =IF(Auslegung!$D$25<=1500,1,2) -> 1
A11: SAL 35 | B11: 2 | C11: 3 | D11: SAL 3523 | E11: =Auslegung!$D$49 -> 333 | F11: =E11/(C11*Auslegung!$D$25/1000) -> 85.38461538 | G11: ='SAL35-CAP'!$C$40 -> 0.00252 | H11: ='SAL35-CAP'!$C$41 -> 1.92 | I11: 12.87210055 | J11: 101 | K11: 126 | L11: 152 | M11: 262 | N11: 90 | O11: 350 | Q11: 158 | R11: =IF(Auslegung!$D$25<=1500,1,2) -> 1
A12: SAL 35 | B12: 2 | C12: 4 | D12: SAL 3524 | E12: =Auslegung!$D$49 -> 333 | F12: =E12/(C12*Auslegung!$D$25/1000) -> 64.03846154 | G12: ='SAL35-CAP'!$C$40 -> 0.00252 | H12: ='SAL35-CAP'!$C$41 -> 1.92 | I12: 7.409127175 | J12: 134 | K12: 158 | L12: 184 | M12: 302 | N12: 150 | O12: 480 | Q12: 198 | R12: =IF(Auslegung!$D$25<=1500,1,2) -> 1
A13: SAL 35 | B13: 2 | C13: 5 | D13: SAL 3525 | E13: =Auslegung!$D$49 -> 333 | F13: =E13/(C13*Auslegung!$D$25/1000) -> 51.23076923 | G13: ='SAL35-CAP'!$C$40 -> 0.00252 | H13: ='SAL35-CAP'!$C$41 -> 1.92 | I13: 4.827250368 | J13: 168 | K13: 192 | L13: 218 | M13: 328 | N13: 200 | O13: 550 | Q13: 222 | R13: =IF(Auslegung!$D$25<=1500,1,2) -> 1
A14: SAL 35 | B14: 3 | C14: 1 | D14: SAL 3531 | E14: =Auslegung!$D$49 -> 333 | F14: =E14/(C14*Auslegung!$D$25/1000) -> 256.1538462 | G14: ='SAL35-CAP'!$C$40 -> 0.00252 | H14: ='SAL35-CAP'!$C$41 -> 1.92 | I14: =G14*F14^H14 -> 106.1016732 | J14: 36 | K14: 61 | L14: 88 | M14: 227 | N14: 40 | O14: 110 | Q14: 123 | R14: =IF(Auslegung!$D$25<=1500,1,2) -> 1
A15: SAL 35 | B15: 3 | C15: 2 | D15: SAL 3532 | E15: =Auslegung!$D$49 -> 333 | F15: =E15/(C15*Auslegung!$D$25/1000) -> 128.0769231 | G15: ='SAL35-CAP'!$C$40 -> 0.00252 | H15: ='SAL35-CAP'!$C$41 -> 1.92 | I15: 28.03784568 | J15: 69 | K15: 92 | L15: 120 | M15: 242 | N15: 60 | O15: 220 | Q15: 138 | R15: =IF(Auslegung!$D$25<=1500,1,2) -> 1
A16: SAL 35 | B16: 3 | C16: 3 | D16: SAL 3533 | E16: =Auslegung!$D$49 -> 333 | F16: =E16/(C16*Auslegung!$D$25/1000) -> 85.38461538 | G16: ='SAL35-CAP'!$C$40 -> 0.00252 | H16: ='SAL35-CAP'!$C$41 -> 1.92 | I16: 12.87210055 | J16: 101 | K16: 126 | L16: 152 | M16: 262 | N16: 90 | O16: 350 | Q16: 158 | R16: =IF(Auslegung!$D$25<=1500,1,2) -> 1
A17: SAL 35 | B17: 3 | C17: 4 | D17: SAL 3534 | E17: =Auslegung!$D$49 -> 333 | F17: =E17/(C17*Auslegung!$D$25/1000) -> 64.03846154 | G17: ='SAL35-CAP'!$C$40 -> 0.00252 | H17: ='SAL35-CAP'!$C$41 -> 1.92 | I17: 7.409127175 | J17: 134 | K17: 158 | L17: 184 | M17: 302 | N17: 150 | O17: 480 | Q17: 198 | R17: =IF(Auslegung!$D$25<=1500,1,2) -> 1
A18: SAL 35 | B18: 3 | C18: 5 | D18: SAL 3535 | E18: =Auslegung!$D$49 -> 333 | F18: =E18/(C18*Auslegung!$D$25/1000) -> 51.23076923 | G18: ='SAL35-CAP'!$C$40 -> 0.00252 | H18: ='SAL35-CAP'!$C$41 -> 1.92 | I18: 4.827250368 | J18: 168 | K18: 192 | L18: 218 | M18: 328 | N18: 200 | O18: 550 | Q18: 222 | R18: =IF(Auslegung!$D$25<=1500,1,2) -> 1
A19: SAL 35 | B19: 4 | C19: 1 | D19: SAL 3541 | E19: =Auslegung!$D$49 -> 333 | F19: =E19/(C19*Auslegung!$D$25/1000) -> 256.1538462 | G19: ='SAL35-CAP'!$C$40 -> 0.00252 | H19: ='SAL35-CAP'!$C$41 -> 1.92 | I19: 106.1016732 | J19: 36 | K19: 61 | L19: 88 | M19: 227 | N19: 40 | O19: 110 | Q19: 123 | R19: =IF(Auslegung!$D$25<=1500,1,2) -> 1
A20: SAL 35 | B20: 4 | C20: 2 | D20: SAL 3542 | E20: =Auslegung!$D$49 -> 333 | F20: =E20/(C20*Auslegung!$D$25/1000) -> 128.0769231 | G20: ='SAL35-CAP'!$C$40 -> 0.00252 | H20: ='SAL35-CAP'!$C$41 -> 1.92 | I20: =G20*F20^H20 -> 28.03784568 | J20: 69 | K20: 92 | L20: 120 | M20: 242 | N20: 60 | O20: 220 | Q20: 138 | R20: =IF(Auslegung!$D$25<=1500,1,2) -> 1
A21: SAL 35 | B21: 4 | C21: 3 | D21: SAL 3543 | E21: =Auslegung!$D$49 -> 333 | F21: =E21/(C21*Auslegung!$D$25/1000) -> 85.38461538 | G21: ='SAL35-CAP'!$C$40 -> 0.00252 | H21: ='SAL35-CAP'!$C$41 -> 1.92 | I21: 12.87210055 | J21: 101 | K21: 126 | L21: 152 | M21: 262 | N21: 90 | O21: 350 | Q21: 158 | R21: =IF(Auslegung!$D$25<=1500,1,2) -> 1
A22: SAL 35 | B22: 4 | C22: 4 | D22: SAL 3544 | E22: =Auslegung!$D$49 -> 333 | F22: =E22/(C22*Auslegung!$D$25/1000) -> 64.03846154 | G22: ='SAL35-CAP'!$C$40 -> 0.00252 | H22: ='SAL35-CAP'!$C$41 -> 1.92 | I22: 7.409127175 | J22: 134 | K22: 158 | L22: 184 | M22: 302 | N22: 150 | O22: 480 | Q22: 198 | R22: =IF(Auslegung!$D$25<=1500,1,2) -> 1
A23: SAL 35 | B23: 4 | C23: 5 | D23: SAL 3545 | E23: =Auslegung!$D$49 -> 333 | F23: =E23/(C23*Auslegung!$D$25/1000) -> 51.23076923 | G23: ='SAL35-CAP'!$C$40 -> 0.00252 | H23: ='SAL35-CAP'!$C$41 -> 1.92 | I23: 4.827250368 | J23: 168 | K23: 192 | L23: 218 | M23: 328 | N23: 200 | O23: 550 | Q23: 222 | R23: =IF(Auslegung!$D$25<=1500,1,2) -> 1
A24: SAL 50 | B24: 1 | C24: 1 | D24: SAL 5011 | E24: =Auslegung!$D$49 -> 333 | F24: =E24/(C24*Auslegung!$D$25/1000) -> 256.1538462 | G24: ='SAL50-CAP'!$C$40 ->  | H24: ='SAL50-CAP'!$C$41 ->  | I24: =G24*F9^H24 ->  | J24: 51 | K24: 75 | L24: 101 | M24: 277 | N24: 80 | O24: 250 | Q24: 158 | R24: =IF(Auslegung!$D$25<=1500,1,2) -> 1
A25: SAL 50 | B25: 1 | C25: 2 | D25: SAL 5012 | E25: =Auslegung!$D$49 -> 333 | F25: =E25/(C25*Auslegung!$D$25/1000) -> 128.0769231 | G25: ='SAL50-CAP'!$C$40 ->  | H25: ='SAL50-CAP'!$C$41 ->  | J25: 97 | K25: 121 | L25: 148 | M25: 317 | N25: 160 | O25: 450 | Q25: 198 | R25: =IF(Auslegung!$D$25<=1500,1,2) -> 1
A26: SAL 50 | B26: 1 | C26: 3 | D26: SAL 5013 | E26: =Auslegung!$D$49 -> 333 | F26: =E26/(C26*Auslegung!$D$25/1000) -> 85.38461538 | G26: ='SAL50-CAP'!$C$40 ->  | H26: ='SAL50-CAP'!$C$41 ->  | J26: 144 | K26: 168 | L26: 194 | M26: 341 | N26: 260 | O26: 650 | Q26: 222 | R26: =IF(Auslegung!$D$25<=1500,1,2) -> 1
A27: SAL 50 | B27: 1 | C27: 4 | D27: SAL 5014 | E27: =Auslegung!$D$49 -> 333 | F27: =E27/(C27*Auslegung!$D$25/1000) -> 64.03846154 | G27: ='SAL50-CAP'!$C$40 ->  | H27: ='SAL50-CAP'!$C$41 ->  | J27: 190 | K27: 215 | L27: 241 | M27: 367 | N27: 280 | O27: 850 | Q27: 248 | R27: =IF(Auslegung!$D$25<=1500,1,2) -> 1
A28: SAL 50 | B28: 1 | C28: 5 | D28: SAL 5015 | E28: =Auslegung!$D$49 -> 333 | F28: =E28/(C28*Auslegung!$D$25/1000) -> 51.23076923 | G28: ='SAL50-CAP'!$C$40 ->  | H28: ='SAL50-CAP'!$C$41 ->  | J28: 237 | K28: 262 | L28: 288 | M28: 417 | N28: 420 | O28: 1000 | Q28: 298 | R28: =IF(Auslegung!$D$25<=1500,1,2) -> 1
A29: SAL 50 | B29: 2 | C29: 1 | D29: SAL 5021 | E29: =Auslegung!$D$49 -> 333 | F29: =E29/(C29*Auslegung!$D$25/1000) -> 256.1538462 | G29: ='SAL50-CAP'!$C$40 ->  | H29: ='SAL50-CAP'!$C$41 ->  | J29: 51 | K29: 75 | L29: 101 | M29: 277 | N29: 80 | O29: 250 | Q29: 158 | R29: =IF(Auslegung!$D$25<=1500,1,2) -> 1
A30: SAL 50 | B30: 2 | C30: 2 | D30: SAL 5022 | E30: =Auslegung!$D$49 -> 333 | F30: =E30/(C30*Auslegung!$D$25/1000) -> 128.0769231 | G30: ='SAL50-CAP'!$C$40 ->  | H30: ='SAL50-CAP'!$C$41 ->  | J30: 97 | K30: 121 | L30: 148 | M30: 317 | N30: 160 | O30: 450 | Q30: 198 | R30: =IF(Auslegung!$D$25<=1500,1,2) -> 1
A31: SAL 50 | B31: 2 | C31: 3 | D31: SAL 5023 | E31: =Auslegung!$D$49 -> 333 | F31: =E31/(C31*Auslegung!$D$25/1000) -> 85.38461538 | G31: ='SAL50-CAP'!$C$40 ->  | H31: ='SAL50-CAP'!$C$41 ->  | J31: 144 | K31: 168 | L31: 194 | M31: 341 | N31: 260 | O31: 650 | Q31: 222 | R31: =IF(Auslegung!$D$25<=1500,1,2) -> 1
A32: SAL 50 | B32: 2 | C32: 4 | D32: SAL 5024 | E32: =Auslegung!$D$49 -> 333 | F32: =E32/(C32*Auslegung!$D$25/1000) -> 64.03846154 | G32: ='SAL50-CAP'!$C$40 ->  | H32: ='SAL50-CAP'!$C$41 ->  | J32: 190 | K32: 215 | L32: 241 | M32: 367 | N32: 280 | O32: 850 | Q32: 248 | R32: =IF(Auslegung!$D$25<=1500,1,2) -> 1
A33: SAL 50 | B33: 2 | C33: 5 | D33: SAL 5025 | E33: =Auslegung!$D$49 -> 333 | F33: =E33/(C33*Auslegung!$D$25/1000) -> 51.23076923 | G33: ='SAL50-CAP'!$C$40 ->  | H33: ='SAL50-CAP'!$C$41 ->  | J33: 237 | K33: 262 | L33: 288 | M33: 417 | N33: 420 | O33: 1000 | Q33: 298 | R33: =IF(Auslegung!$D$25<=1500,1,2) -> 1
A34: SAL 50 | B34: 3 | C34: 1 | D34: SAL 5031 | E34: =Auslegung!$D$49 -> 333 | F34: =E34/(C34*Auslegung!$D$25/1000) -> 256.1538462 | G34: ='SAL50-CAP'!$C$40 ->  | H34: ='SAL50-CAP'!$C$41 ->  | I34: =G34*F19^H34 ->  | J34: 51 | K34: 75 | L34: 101 | M34: 277 | N34: 80 | O34: 250 | Q34: 158 | R34: =IF(Auslegung!$D$25<=1500,1,2) -> 1
A35: SAL 50 | B35: 3 | C35: 2 | D35: SAL 5032 | E35: =Auslegung!$D$49 -> 333 | F35: =E35/(C35*Auslegung!$D$25/1000) -> 128.0769231 | G35: ='SAL50-CAP'!$C$40 ->  | H35: ='SAL50-CAP'!$C$41 ->  | J35: 97 | K35: 121 | L35: 148 | M35: 317 | N35: 160 | O35: 450 | Q35: 198 | R35: =IF(Auslegung!$D$25<=1500,1,2) -> 1
A36: SAL 50 | B36: 3 | C36: 3 | D36: SAL 5033 | E36: =Auslegung!$D$49 -> 333 | F36: =E36/(C36*Auslegung!$D$25/1000) -> 85.38461538 | G36: ='SAL50-CAP'!$C$40 ->  | H36: ='SAL50-CAP'!$C$41 ->  | J36: 144 | K36: 168 | L36: 194 | M36: 341 | N36: 260 | O36: 650 | Q36: 222 | R36: =IF(Auslegung!$D$25<=1500,1,2) -> 1
A37: SAL 50 | B37: 3 | C37: 4 | D37: SAL 5034 | E37: =Auslegung!$D$49 -> 333 | F37: =E37/(C37*Auslegung!$D$25/1000) -> 64.03846154 | G37: ='SAL50-CAP'!$C$40 ->  | H37: ='SAL50-CAP'!$C$41 ->  | J37: 190 | K37: 215 | L37: 241 | M37: 367 | N37: 280 | O37: 850 | Q37: 248 | R37: =IF(Auslegung!$D$25<=1500,1,2) -> 1
A38: SAL 50 | B38: 3 | C38: 5 | D38: SAL 5035 | E38: =Auslegung!$D$49 -> 333 | F38: =E38/(C38*Auslegung!$D$25/1000) -> 51.23076923 | G38: ='SAL50-CAP'!$C$40 ->  | H38: ='SAL50-CAP'!$C$41 ->  | J38: 237 | K38: 262 | L38: 288 | M38: 417 | N38: 420 | O38: 1000 | Q38: 298 | R38: =IF(Auslegung!$D$25<=1500,1,2) -> 1
A39: SAL 50 | B39: 4 | C39: 1 | D39: SAL 5041 | E39: =Auslegung!$D$49 -> 333 | F39: =E39/(C39*Auslegung!$D$25/1000) -> 256.1538462 | G39: ='SAL50-CAP'!$C$40 ->  | H39: ='SAL50-CAP'!$C$41 ->  | J39: 51 | K39: 75 | L39: 101 | M39: 277 | N39: 80 | O39: 250 | Q39: 158 | R39: =IF(Auslegung!$D$25<=1500,1,2) -> 1
A40: SAL 50 | B40: 4 | C40: 2 | D40: SAL 5042 | E40: =Auslegung!$D$49 -> 333 | F40: =E40/(C40*Auslegung!$D$25/1000) -> 128.0769231 | G40: ='SAL50-CAP'!$C$40 ->  | H40: ='SAL50-CAP'!$C$41 ->  | I40: =G40*F25^H40 ->  | J40: 97 | K40: 121 | L40: 148 | M40: 317 | N40: 160 | O40: 450 | Q40: 198 | R40: =IF(Auslegung!$D$25<=1500,1,2) -> 1
A41: SAL 50 | B41: 4 | C41: 3 | D41: SAL 5043 | E41: =Auslegung!$D$49 -> 333 | F41: =E41/(C41*Auslegung!$D$25/1000) -> 85.38461538 | G41: ='SAL50-CAP'!$C$40 ->  | H41: ='SAL50-CAP'!$C$41 ->  | I41: =G41*F26^H41 ->  | J41: 144 | K41: 168 | L41: 194 | M41: 341 | N41: 260 | O41: 650 | Q41: 222 | R41: =IF(Auslegung!$D$25<=1500,1,2) -> 1
A42: SAL 50 | B42: 4 | C42: 4 | D42: SAL 5044 | E42: =Auslegung!$D$49 -> 333 | F42: =E42/(C42*Auslegung!$D$25/1000) -> 64.03846154 | G42: ='SAL50-CAP'!$C$40 ->  | H42: ='SAL50-CAP'!$C$41 ->  | I42: =G42*F27^H42 ->  | J42: 190 | K42: 215 | L42: 241 | M42: 367 | N42: 280 | O42: 850 | Q42: 248 | R42: =IF(Auslegung!$D$25<=1500,1,2) -> 1
A43: SAL 50 | B43: 4 | C43: 5 | D43: SAL 5045 | E43: =Auslegung!$D$49 -> 333 | F43: =E43/(C43*Auslegung!$D$25/1000) -> 51.23076923 | G43: ='SAL50-CAP'!$C$40 ->  | H43: ='SAL50-CAP'!$C$41 ->  | I43: =G43*F28^H43 ->  | J43: 237 | K43: 262 | L43: 288 | M43: 417 | N43: 420 | O43: 1000 | Q43: 298 | R43: =IF(Auslegung!$D$25<=1500,1,2) -> 1
A44: SAL-S | B44: 1 | C44: 1 | D44: SAL-S11 | E44: =Auslegung!$D$49 -> 333 | F44: =E44/(C44*Auslegung!$D$25/1000) -> 256.1538462 | G44: ='SALS-CAP'!$C$40 ->  | H44: ='SALS-CAP'!$C$41 ->  | I44: =G44*F29^H44 ->  | J44: 35 | K44: 59 | L44: 88 | M44: 215 | N44: 50 | O44: 115 | Q44: 123 | R44: =IF(Auslegung!$D$25<=1500,1,2) -> 1
A45: SAL-S | B45: 1 | C45: 2 | D45: SAL-S12 | E45: =Auslegung!$D$49 -> 333 | F45: =E45/(C45*Auslegung!$D$25/1000) -> 128.0769231 | G45: ='SALS-CAP'!$C$40 ->  | H45: ='SALS-CAP'!$C$41 ->  | J45: 67 | K45: 91 | L45: 120 | M45: 230 | N45: 60 | O45: 220 | Q45: 138 | R45: =IF(Auslegung!$D$25<=1500,1,2) -> 1
A46: SAL-S | B46: 1 | C46: 3 | D46: SAL-S13 | E46: =Auslegung!$D$49 -> 333 | F46: =E46/(C46*Auslegung!$D$25/1000) -> 85.38461538 | G46: ='SALS-CAP'!$C$40 ->  | H46: ='SALS-CAP'!$C$41 ->  | J46: 100.5 | K46: 124.5 | L46: 152 | M46: 250 | N46: 90 | O46: 350 | Q46: 158 | R46: =IF(Auslegung!$D$25<=1500,1,2) -> 1
A47: SAL-S | B47: 1 | C47: 4 | D47: SAL-S14 | E47: =Auslegung!$D$49 -> 333 | F47: =E47/(C47*Auslegung!$D$25/1000) -> 64.03846154 | G47: ='SALS-CAP'!$C$40 ->  | H47: ='SALS-CAP'!$C$41 ->  | J47: 133 | K47: 157.5 | L47: 184 | M47: 290 | N47: 150 | O47: 480 | Q47: 198 | R47: =IF(Auslegung!$D$25<=1500,1,2) -> 1
A52: Spaltenindex | C52: 1 | E52: 1 | F52: 2 | G52: 3 | H52: 4 | I52: 5 | J52: 6 | K52: 7 | L52: 8 | M52: 9 | N52: 10 | O52: 11 | P52: 12 | Q52: 13 | R52: 14 | S52: 15 | T52: 16 | U52: 17 | V52: 18 | W52: 19 | X52: 20 | Y52: 21
M54: Einsatzbereich SAL-S vom SAL35 übernommen, 10.10.17 TU
A58: Stand: | C58: 2020-10-30
C60: Übergabe: | E60: Volumenstrom für Druckverlustberechnung | H60: =Auslegung!$D$49 -> 333
A63: Auswahl: | C63: Zuluft | E63: =CONCATENATE(Auslegung!$D$12,Auslegung!$D$48,Auslegung!$D$18) -> SAL 3512 | F63: =VLOOKUP($E$63,$D$4:$R$47,G52,FALSE) -> 128.0769231 | G63: =VLOOKUP($E$63,$D$4:$R$47,H52,FALSE) -> 0.00252 | H63: 1.92 | I63: 28.03784568 | J63: 69 | K63: 92 | L63: 120 | M63: 242 | N63: 60 | O63: 220 | P63: 0 | Q63: 138 | R63: 1 | T63: =VLOOKUP($E$63,$D$4:$R$43,T52,FALSE) -> 
C64: Abluft | E64: =CONCATENATE(Auslegung!$D$12,Auslegung!$D$48,Auslegung!$D$18) -> SAL 3512 | F64: =VLOOKUP($E$63,$D$4:$R$43,G52,FALSE) -> 128.0769231 | G64: =VLOOKUP($E$63,$D$4:$R$43,H52,FALSE) -> 0.00252 | H64: 1.92 | I64: 28.03784568 | J64: 69 | K64: 92 | L64: 120 | M64: 242 | N64: =VLOOKUP($E$63,$D$4:$R$43,O52,FALSE) -> 60 | O64: =VLOOKUP($E$63,$D$4:$R$43,P52,FALSE) -> 220 | P64: 0 | Q64: 138 | R64: 1
L66: Einsatzgrenzen, absolut: | N66: =N63*Auslegung!$D$25/1000 -> 78 | O66: =O63*Auslegung!$D$25/1000 -> 286
B67: Walzenstellungen: | E67: 1= A1/F6 hochdiffus
E68: 2= A1/F6 divergent
E69: 3=CD
E70: 4=einseitig

Sheet Lw (hidden)
A4: T[s] nach VDI 2081 | G4: Nachhallzeit | H4: Richtungsfaktor | I4: Raumvolumen | J4: äqu. Absorptionsfläche
A5: Raumart | E5: s | G5: t | H5: Q | I5: V | J5: A
A6: Einzelbüro | E6: 0.5 | G6: s | I6: m³ | J6: m²Sabine
A7: Großraumbüro | E7: 0.5 | F7: =Auslegung!$D$62 -> Einzelbüro | G7: =VLOOKUP(F7,$A$6:$E$29,5,FALSE) -> 0.5 | H7: 4 | I7: =Auslegung!$D$54*Auslegung!$D$56*Auslegung!$D$57 -> 400 | J7: =0.163*I7/G7 -> 130.4
A8: Werkstätten | E8: 1.5
A9: Ruheraum, Pausenraum | E9: 1
A10: Untersuchungsraum Krankenhaus | E10: 2
A11: Rundfunk-, Fernsehstudio | E11: 0.5
A12: Chemielabor | E12: 2
A13: Wasch- und WC-Raum, Umkleide | E13: 2
A14: Schwimmbad | E14: 2 | Y14: =10*LOG(10^(0.1*#REF!)+10^(0.1*#REF!)+10^(0.1*#REF!)+10^(0.1*#REF!)+10^(0.1*#REF!)+10^(0.1*#REF!)+10^(0.1*#REF!)+10^(0.1*#REF!)+10^(0.1*#REF!)+10^(0.1*#REF!)+10^(0.1*#REF!)+10^(0.1*#REF!)+10^(0.1*#REF!)+10^(0.1*#REF!)+10^(0.1*#REF!)+10^(0.1*#REF!)+10^(0.1*#REF!)+10^(0.1*#REF!)+10^(0.1*#REF!)+10^(0.1*#REF!)+10^(0.1*#REF!)) -> 
A15: EDV-Raum | E15: 1.5 | Y15: =10*LOG(10^(0.1*#REF!)+10^(0.1*#REF!)+10^(0.1*#REF!)+10^(0.1*#REF!)+10^(0.1*#REF!)+10^(0.1*#REF!)+10^(0.1*#REF!)+10^(0.1*#REF!)+10^(0.1*#REF!)+10^(0.1*#REF!)+10^(0.1*#REF!)+10^(0.1*#REF!)+10^(0.1*#REF!)+10^(0.1*#REF!)+10^(0.1*#REF!)+10^(0.1*#REF!)+10^(0.1*#REF!)+10^(0.1*#REF!)+10^(0.1*#REF!)+10^(0.1*#REF!)+10^(0.1*#REF!)) -> 
A16: Konzertsaal | E16: 1.5 | Y16: =10*LOG(10^(0.1*#REF!)+10^(0.1*#REF!)+10^(0.1*#REF!)+10^(0.1*#REF!)+10^(0.1*#REF!)+10^(0.1*#REF!)+10^(0.1*#REF!)+10^(0.1*#REF!)+10^(0.1*#REF!)+10^(0.1*#REF!)+10^(0.1*#REF!)+10^(0.1*#REF!)+10^(0.1*#REF!)+10^(0.1*#REF!)+10^(0.1*#REF!)+10^(0.1*#REF!)+10^(0.1*#REF!)+10^(0.1*#REF!)+10^(0.1*#REF!)+10^(0.1*#REF!)+10^(0.1*#REF!)) -> 
A17: Lesesaal | E17: 1 | Y17: =10*LOG(10^(0.1*#REF!)+10^(0.1*#REF!)+10^(0.1*#REF!)+10^(0.1*#REF!)+10^(0.1*#REF!)+10^(0.1*#REF!)+10^(0.1*#REF!)+10^(0.1*#REF!)+10^(0.1*#REF!)+10^(0.1*#REF!)+10^(0.1*#REF!)+10^(0.1*#REF!)+10^(0.1*#REF!)+10^(0.1*#REF!)+10^(0.1*#REF!)+10^(0.1*#REF!)+10^(0.1*#REF!)+10^(0.1*#REF!)+10^(0.1*#REF!)+10^(0.1*#REF!)+10^(0.1*#REF!)) -> 
A18: Museum | E18: 1.5
A19: Küche | E19: 1.5
A20: Theater, Kino | E20: 1
A21: Klassen- Seminarraum | E21: 1
A22: Gaststätte | E22: 1
A23: kein Typ | E23: x
A24: Konferenzraum | E24: 1
A25: Hotelzimmer | E25: 0.5
A26: Hörsaal | E26: 1
A27: Bettenzimmer Krankenhaus | E27: 1
A28: Verkaufsraum | E28: 1
A29: Sporthalle | E29: 2
A31: Achtung: Automatisierte Konstantenauswahl aus den "-CAP" Arbeitsblättern
A32: Konstantenübergabe Summen Schallleistungspegel | D32: K021 | E32: =SUM('SAL35-CAP'!C42,'SAL50-CAP'!C42,'SALS-CAP'!C42) -> -75.6
D33: K022 | E33: =SUM('SAL35-CAP'!C43,'SAL50-CAP'!C43,'SALS-CAP'!C43) -> 53.72 | Y33: =10*LOG(10^(0.1*#REF!)+10^(0.1*#REF!)+10^(0.1*#REF!)+10^(0.1*#REF!)+10^(0.1*#REF!)+10^(0.1*#REF!)+10^(0.1*#REF!)+10^(0.1*#REF!)+10^(0.1*#REF!)+10^(0.1*#REF!)+10^(0.1*#REF!)+10^(0.1*#REF!)+10^(0.1*#REF!)+10^(0.1*#REF!)+10^(0.1*#REF!)+10^(0.1*#REF!)+10^(0.1*#REF!)+10^(0.1*#REF!)+10^(0.1*#REF!)+10^(0.1*#REF!)+10^(0.1*#REF!)) -> 
A34: Vorgabedaten: | C34: Schlitzanzahl | E34: =Auslegung!$D$18 -> 2
C35: Schlitzlänge | E35: =Auslegung!$D$25 -> 1300
C36: abs. Volumenstrom | E36: =Auslegung!$D$49 -> 333
C38: spez. Volumenstrom | E38: =E36/(E34*(E35/1000)) -> 128.0769231
C40: Rückgabe LWA | E40: =$E$32+$E$33*LOG($E$38)+10*LOG($E$34)+10*LOG(($E$35/1000)) -> 41.76306945
I44: Relativspektrum LWOkt [dB(A)]
I45: Oktavfrequenzband fm
I46: 125 | J46: 250 | K46: 500 | L46: 1000 | M46: 2000 | N46: 4000 | O46: 8000
I47: -14.40568315 | J47: -2.780106751 | K47: -6.81557372 | L47: -8.386437845 | M47: -14.25716232 | N47: -23.27136663 | O47: -30.37235091
F48: A-bewertete | G48: Oktavband-Schallleistung | I48: =IF($E$40+I47>0,$E$40+I47,0) -> 27.3573863 | J48: =IF($E$40+J47>0,$E$40+J47,0) -> 38.9829627 | K48: 34.94749573 | L48: 33.37663161 | M48: 27.50590713 | N48: 18.49170282 | O48: 11.39071854
F49: A-Bewertung | I49: 16.1 | J49: 8.6 | K49: 3.2 | L49: 0 | M49: -1.2 | N49: -1 | O49: -1.1
F50: Unbewertete Oktavband Schallleistung | I50: =IF(I48+I49>0,I48+I49,0) -> 43.4573863 | J50: =IF(J48+J49>0,J48+J49,0) -> 47.5829627 | K50: 38.14749573 | L50: 33.37663161 | M50: 26.30590713 | N50: 17.49170282 | O50: 10.29071854

Sheet DR (hidden)
A1: Berechnung des Zugluftrisikos
A2: Achtung: Automatisierte Konstantenauswahl aus den "-CAP" Arbeitsblättern
A3: Annahme: | B3: Turbulenzgrad = | C3: =IF(Auslegung!D12="MPC-Q",20,40) -> 40 | D3: %
A5: Konstanten Temperaturverhältnis | C5: K051 | D5: =SUM('SAL35-CAP'!$C$51,'SAL50-CAP'!$C$51,'SALS-CAP'!$C$51) -> 0.09932
C6: K052 | D6: =SUM('SAL35-CAP'!$C$52,'SAL50-CAP'!$C$52,'SALS-CAP'!$C$52) -> 0.5
A7: Temperaturen | B7: Zuluft | C7: =Auslegung!$D$51 -> 20
B8: Raum | C8: =Auslegung!$D$52 -> 20
A10: 1. Zugluftrisiko im Fußbodenbereich
B11: Lauflänge | C11: =xkr._vx!$L$24 -> 5.5
B12: Luftgeschwindigkeit, errechnet | C12: =xkr._vx!$N$24 -> 0.3882517517
B13: Luftgeschwindigkeit, gesetzt | C13: =IF(C12<0.05,0.05,C12) -> 0.3882517517
B14: lok. Temperaturdifferenz | C14: =($C$8-$C$7)*$D$5*(1/C11)^$D$6 -> 0
B15: Absolute Temperatur | C15: =C8-C14 -> 20
B16: Zugluftrisiko | C16: =IF((34-C15)*((C13-0.05)^0.62)*(0.37*C13*$C$3+3.14)>100,100,IF((34-C15)*((C13-0.05)^0.62)*(0.37*C13*$C$3+3.14)<0,0,(34-C15)*((C13-0.05)^0.62)*(0.37*C13*$C$3+3.14))) -> 63.52860702
A18: 2. Zugluftrisiko nach Stoßpunkt
B19: Lauflänge | C19: =IF(Auslegung!$D$12="MPC-Q",xkr._vx!$L$31,xkr._vx!$L$26) -> 12.2
B20: Luftgeschwindigkeit, errechnet | C20: =IF(Auslegung!$D$42="CD",xkr._vx!$N$31,xkr._vx!$N$26) -> 0.1908572402
B21: Luftgeschwindigkeit, gesetzt | C21: =IF(C20<0.05,0.05,C20) -> 0.1908572402
B22: lok. Temperaturdifferenz | C22: =($C$8-$C$7)*$D$5*(1/C19)^$D$6 -> 0
B23: Absolute Temperatur | C23: =C8-C22 -> 20
B24: Zugluftrisiko | C24: =IF((34-C23)*((C21-0.05)^0.62)*(0.37*C21*$C$3+3.14)>100,100,IF((34-C23)*((C21-0.05)^0.62)*(0.37*C21*$C$3+3.14)<0,0,(34-C23)*((C21-0.05)^0.62)*(0.37*C21*$C$3+3.14))) -> 24.77187013 | D24: =IF(C24<C32,C32,C24) -> 24.77187013
A26: 3. Zugluftrisiko nach Ablösen an X_kritisch
B27: Lauflänge | C27: =xkr._vx!$L$28 -> 1245.617608
B28: Luftgeschwindigkeit, errechnet | C28: =xkr._vx!N28 -> 0.02579897189
B29: Luftgeschwindigkeit, gesetzt | C29: =IF(C28<0.05,0.05,C28) -> 0.05
B30: lok. Temperaturdifferenz | C30: =($C$8-$C$7)*$D$5*(1/C27)^$D$6 -> 0
B31: Absolute Temperatur | C31: =C8-C30 -> 20
B32: Zugluftrisiko | C32: =IF((34-C31)*((C29-0.05)^0.62)*(0.37*C29*$C$3+3.14)>100,100,IF((34-C31)*((C29-0.05)^0.62)*(0.37*C29*$C$3+3.14)<0,0,(34-C31)*((C29-0.05)^0.62)*(0.37*C29*$C$3+3.14))) -> 0

Sheet xkr._vx (hidden)
A1: Geschwindigkeit im Strahl und kritischer Strahlweg | G1: Annahme: | H1: Winkel nach xkrit | I1: 45
A2: Achtung: Automatisierte Konstantenauswahl aus den "-CAP" Arbeitsblättern
A3: Konstanten | B3: K031 | C3: =SUM('SAL35-CAP'!C44,'SAL50-CAP'!C44,'SALS-CAP'!C44) -> 0.005027 | E3: Konstanten: | F3: K041 | G3: =SUM('SAL35-CAP'!C48,'SAL50-CAP'!C48,'SALS-CAP'!C48) -> 0.0882 | I3: Konstanten | J3: K071 | K3: =SUM('SAL50-CAP'!C53,'SAL35-CAP'!C53,'SALS-CAP'!C53) -> 0
B4: K032 | C4: =SUM('SAL35-CAP'!C45,'SAL50-CAP'!C45,'SALS-CAP'!C45) -> 5.8 | F4: K042 | G4: =SUM('SAL35-CAP'!C49,'SAL50-CAP'!C49,'SALS-CAP'!C49) -> 0.643 | J4: K072 | K4: =SUM('SAL50-CAP'!C54,'SAL35-CAP'!C54,'SALS-CAP'!C54) -> 0
B5: K033 | C5: =SUM('SAL35-CAP'!C46,'SAL50-CAP'!C46,'SALS-CAP'!C46) -> 0.5 | F5: K043 | G5: =SUM('SAL35-CAP'!C50,'SAL50-CAP'!C50,'SALS-CAP'!C50) -> 1.287 | J5: K081 | K5: =SUM('SAL50-CAP'!C55,'SAL35-CAP'!C55,'SALS-CAP'!C55) -> 0
B6: K034 | C6: =SUM('SAL35-CAP'!C47,'SAL50-CAP'!C47,'SALS-CAP'!C47) -> 1 | F6: Dt0 | G6: =IF(ABS(Auslegung!$D$52-Auslegung!$D$51)=0,0.01,ABS(Auslegung!$D$52-Auslegung!$D$51)) -> 0.01 | J6: K082 | K6: =SUM('SAL50-CAP'!C56,'SAL35-CAP'!C56,'SALS-CAP'!C56) -> 0
J7: K083 | K7: =SUM('SAL50-CAP'!C57,'SAL35-CAP'!C57,'SALS-CAP'!C57) -> 0
B8: Lauflänge | C8: Geschwindigkeit im Strahl horizontal | D8: Geschwindigkeit im Strahl vertikal | F8: kritischer Strahlweg Anzeige | G8: kritischer Strahlweg | H8: vertikaler Strahlweg | J8: Geschwindigkeit im Strahl an xKr
B9: L | C9: v0 | D9: v1 | F9: xkr._Anzeige | G9: xkr. | H9: y | J9: v0
B10: m | C10: m/s | D10: m/s | F10: m | G10: m | H10: m | J10: m/s | L10: =G3*SQRT(3)*138.39^G5*(1/(10^G4)) -> 19.79844007
B11: 0.5 | C11: =$C$3*$G$21*((1/xkr._vx!B11)^xkr._vx!$C$5)*$C$6*SQRT(Auslegung!$D$18) -> 1.287685385 | D11: =1/B11*$J$11 -> 0 | F11: =IF(AND(G22=3,Auslegung!$D$51<=Auslegung!$D$52),"Walzenstellung!",IF($G$11<Auslegung!$D$56,$G$11,">Raumlänge")) -> >Raumlänge | G11: =IF(OR(G22=1,G22=2),J27,J27) -> 1242.506338 | N11: =138.89*4.5 -> 625.005
B12: 0.6 | C12: =$C$3*$G$21*((1/xkr._vx!B12)^xkr._vx!$C$5)*$C$6*SQRT(Auslegung!$D$18) -> 1.175490554 | D12: =1/B12*$J$11 -> 0
B13: 0.7 | C13: =$C$3*$G$21*((1/xkr._vx!B13)^xkr._vx!$C$5)*$C$6*SQRT(Auslegung!$D$18) -> 1.088292782 | D13: 0
B14: 0.8 | C14: =$C$3*$G$21*((1/xkr._vx!B14)^xkr._vx!$C$5)*$C$6*SQRT(Auslegung!$D$18) -> 1.018004681 | D14: 0
B15: 0.9 | C15: =$C$3*$G$21*((1/xkr._vx!B15)^xkr._vx!$C$5)*$C$6*SQRT(Auslegung!$D$18) -> 0.9597840179 | D15: =1/B15*$J$11 -> 0
B16: 1 | C16: =$C$3*$G$21*((1/xkr._vx!B16)^xkr._vx!$C$5)*$C$6*SQRT(Auslegung!$D$18) -> 0.9105310675 | D16: 0
B17: 1.1 | C17: =$C$3*$G$21*((1/xkr._vx!B17)^xkr._vx!$C$5)*$C$6*SQRT(Auslegung!$D$18) -> 0.8681573092 | D17: 0
B18: 1.2 | C18: =$C$3*$G$21*((1/xkr._vx!B18)^xkr._vx!$C$5)*$C$6*SQRT(Auslegung!$D$18) -> 0.8311973416 | D18: 0
B19: 1.3 | C19: =$C$3*$G$21*((1/xkr._vx!B19)^xkr._vx!$C$5)*$C$6*SQRT(Auslegung!$D$18) -> 0.7985885746 | D19: 0
B20: 1.4 | C20: =$C$3*$G$21*((1/xkr._vx!B20)^xkr._vx!$C$5)*$C$6*SQRT(Auslegung!$D$18) -> 0.7695392058 | D20: =1/B20*$J$11 -> 0 | F20: Schlitzanzahl | G20: =Auslegung!$D$18 -> 2 | J20: ACHTUNG! Walzenstellung wird bei rot dargestellten Zahlen berücksichtigt!
B21: 1.5 | C21: =$C$3*$G$21*((1/xkr._vx!B21)^xkr._vx!$C$5)*$C$6*SQRT(Auslegung!$D$18) -> 0.7434455034 | D21: 0 | F21: spez. Volumenstrom | G21: =Auslegung!$D$49/(Auslegung!D18*(Auslegung!D25/1000)) -> 128.0769231
B22: 1.6 | C22: =$C$3*$G$21*((1/xkr._vx!B22)^xkr._vx!$C$5)*$C$6*SQRT(Auslegung!$D$18) -> 0.7198380134 | D22: 0 | F22: Walzenstellung* | G22: =Auslegung!$D$48 -> 1 | I22: 1/2 Durchlassabstand | J22: hor. Lauflänge | K22: ver. Lauflänge | L22: ges. Lauflänge | M22: Geschw. Endpunkt | N22: Geschw. OK A-Ber. | O22: Geschw. Anzeige
B23: 1.7 | C23: =$C$3*$G$21*((1/xkr._vx!B23)^xkr._vx!$C$5)*$C$6*SQRT(Auslegung!$D$18) -> 0.69834545 | D23: 0 | E23: Betrachtung Strahlweg frei entlang der Decke bis Wandkante | J23: =Auslegung!$D$58 -> 1 | M23: =$C$3*(Auslegung!$D$49/(Auslegung!$D$18*(Auslegung!D25/1000)))*SQRT(G20)*(1/xkr._vx!J23)^xkr._vx!$C$5 -> 0.9105310675
B24: 1.8 | C24: =$C$3*$G$21*((1/xkr._vx!B24)^xkr._vx!$C$5)*$C$6*SQRT(Auslegung!$D$18) -> 0.6786697875 | D24: 0 | E24: Betrachtung Strahlweg von Wandkante bis Fußboden Aufenthaltsbereich | K24: =Auslegung!$D$54+0.5 -> 4.5 | L24: =IF(OR($G$22=1,$G$22=2),(K24+J23),(K24+J23)) -> 5.5 | N24: =IF(G22=4,$C$3*$G$21*SQRT(G20)*((1/xkr._vx!L24)^xkr._vx!$C$5)*$C$6*2,$C$3*$G$21*SQRT(G20)*((1/xkr._vx!L24)^xkr._vx!$C$5)*$C$6) -> 0.3882517517 | O24: =IF(N24<0.1,"<0,1",N24) -> 0.3882517517
B25: 1.9 | C25: =$C$3*$G$21*((1/xkr._vx!B25)^xkr._vx!$C$5)*$C$6*SQRT(Auslegung!$D$18) -> 0.6605686645 | D25: 0 | E25: Betrachtung Strahlweg von Durchlassmitte bis Stoßpunkt | I25: =IF(OR($G$22=1,$G$22=2),Auslegung!$D$59,Auslegung!$D$59) -> 10 | M25: =$C$3*$G$21*SQRT(G20)*(1/xkr._vx!I25)^xkr._vx!$C$5 -> 0.2879352054
B26: 2 | C26: =$C$3*$G$21*((1/xkr._vx!B26)^xkr._vx!$C$5)*$C$6*SQRT(Auslegung!$D$18) -> 0.6438426923 | D26: 0 | E26: Betrachtung Freistrahl ab Stoßpunkt bis Oberkante Aufenthaltsbereich | K26: =Auslegung!$D$54-Auslegung!$D$55 -> 2.2 | L26: =K26+I25 -> 12.2 | N26: =$C$3*SQRT(G20)*$G$21*((1/(xkr._vx!I25+xkr._vx!$C$4*xkr._vx!K26))^xkr._vx!$C$5)*$C$6 -> 0.1908572402 | O26: =MAX(N26,N28) -> 0.1908572402 | P26: =IF(O26<0.1,"<0,1",O26) -> 0.1908572402
B27: 2.1 | C27: =$C$3*$G$21*((1/xkr._vx!B27)^xkr._vx!$C$5)*$C$6*SQRT(Auslegung!$D$18) -> 0.6283261304 | D27: 0 | E27: Betrachtung Strahlweg bis xkritisch | J27: =$G$3*SQRT(G20)*$G$21^$G$5*(1/xkr._vx!$G$6^(xkr._vx!$G$4)) -> 1242.506338 | M27: =$C$3*(Auslegung!$D$49/(Auslegung!$D$18*(Auslegung!D25/1000)))*SQRT(G20)*(1/xkr._vx!J27)^xkr._vx!$C$5 -> 0.02583125236
B28: 2.2 | C28: =$C$3*$G$21*((1/xkr._vx!B28)^xkr._vx!$C$5)*$C$6*SQRT(Auslegung!$D$18) -> 0.6138799205 | D28: 0 | E28: Betrachtung von xkritisch bis Oberkante Aufenthaltsbereich | K28: =(Auslegung!$D$54-Auslegung!$D$55)/SIN($I$1/180*PI()) -> 3.111269837 | L28: =J27+K28 -> 1245.617608 | N28: =IFERROR($G$21*SQRT(G20)*$C$3*(1/xkr._vx!L28)^xkr._vx!$C$5*$C$6,"") -> 0.02579897189 | O28: =IF(N28<0.1,"<0,1",N28) -> <0,1
B29: 2.3 | C29: =$C$3*$G$21*((1/xkr._vx!B29)^xkr._vx!$C$5)*$C$6*SQRT(Auslegung!$D$18) -> 0.6003864063 | D29: 0
B30: 2.4 | C30: =$C$3*$G$21*((1/xkr._vx!B30)^xkr._vx!$C$5)*$C$6*SQRT(Auslegung!$D$18) -> 0.5877452768 | D30: 0
B31: 2.5 | C31: =$C$3*$G$21*((1/xkr._vx!B31)^xkr._vx!$C$5)*$C$6*SQRT(Auslegung!$D$18) -> 0.5758704107 | D31: 0 | G31: die Maximalgeschwindigkeit im Vertikalstrahl berücksichtigt | J31: vymax | K31: =K26 -> 2.2 | L31: =K31 -> 2.2 | M31: =($K$3*$G$21*SQRT(xkr._vx!G20))/(xkr._vx!K31^K4)*1.6 -> 0 | N31: =M31 -> 0 | O31: <0,1
B32: 2.6 | C32: =$C$3*$G$21*((1/xkr._vx!B32)^xkr._vx!$C$5)*$C$6*SQRT(Auslegung!$D$18) -> 0.5646873965 | D32: 0 | G32: einen Korrekturfaktor von 1,6 (Katalogangabe) | J32: ymax | K32: =K31 -> 2.2 | M32: =(K5*(SQRT(G20)*G21^K7))/(G6)^xkr._vx!K6 -> 0
B33: 2.7 | C33: =$C$3*$G$21*((1/xkr._vx!B33)^xkr._vx!$C$5)*$C$6*SQRT(Auslegung!$D$18) -> 0.5541315611 | D33: 0
B34: 2.8 | C34: =$C$3*$G$21*((1/xkr._vx!B34)^xkr._vx!$C$5)*$C$6*SQRT(Auslegung!$D$18) -> 0.5441463908 | D34: 0
B35: 2.9 | C35: =$C$3*$G$21*((1/xkr._vx!B35)^xkr._vx!$C$5)*$C$6*SQRT(Auslegung!$D$18) -> 0.5346822533 | D35: 0 | F35: Walzenstellungen: | G35: 1 = hochdiffus
B36: 3 | C36: =$C$3*$G$21*((1/xkr._vx!B36)^xkr._vx!$C$5)*$C$6*SQRT(Auslegung!$D$18) -> 0.5256953569 | D36: 0 | G36: 2 = divergent
B37: 3.1 | C37: =$C$3*$G$21*((1/xkr._vx!B37)^xkr._vx!$C$5)*$C$6*SQRT(Auslegung!$D$18) -> 0.5171468952 | D37: 0 | G37: 3 = CD vertikal
B38: 3.2 | C38: =$C$3*$G$21*((1/xkr._vx!B38)^xkr._vx!$C$5)*$C$6*SQRT(Auslegung!$D$18) -> 0.5090023406 | D38: 0 | G38: 4 = einseitig
B39: 3.3 | C39: =$C$3*$G$21*((1/xkr._vx!B39)^xkr._vx!$C$5)*$C$6*SQRT(Auslegung!$D$18) -> 0.5012308562 | D39: 0
B40: 3.4 | C40: =$C$3*$G$21*((1/xkr._vx!B40)^xkr._vx!$C$5)*$C$6*SQRT(Auslegung!$D$18) -> 0.4938048033 | D40: 0
B41: 3.5 | C41: =$C$3*$G$21*((1/xkr._vx!B41)^xkr._vx!$C$5)*$C$6*SQRT(Auslegung!$D$18) -> 0.4866993278 | D41: 0
B42: 3.6 | C42: =$C$3*$G$21*((1/xkr._vx!B42)^xkr._vx!$C$5)*$C$6*SQRT(Auslegung!$D$18) -> 0.4798920089 | D42: 0
B43: 3.7 | C43: =$C$3*$G$21*((1/xkr._vx!B43)^xkr._vx!$C$5)*$C$6*SQRT(Auslegung!$D$18) -> 0.4733625617 | D43: 0
B44: 3.8 | C44: =$C$3*$G$21*((1/xkr._vx!B44)^xkr._vx!$C$5)*$C$6*SQRT(Auslegung!$D$18) -> 0.4670925821 | D44: 0
B45: 3.9 | C45: =$C$3*$G$21*((1/xkr._vx!B45)^xkr._vx!$C$5)*$C$6*SQRT(Auslegung!$D$18) -> 0.4610653285 | D45: 0
B46: 4 | C46: =$C$3*$G$21*((1/xkr._vx!B46)^xkr._vx!$C$5)*$C$6*SQRT(Auslegung!$D$18) -> 0.4552655337 | D46: 0
B47: 4.1 | C47: =$C$3*$G$21*((1/xkr._vx!B47)^xkr._vx!$C$5)*$C$6*SQRT(Auslegung!$D$18) -> 0.449679242 | D47: 0 | O47: K1 | P47: 0.009010710284
B48: 4.2 | C48: =$C$3*$G$21*((1/xkr._vx!B48)^xkr._vx!$C$5)*$C$6*SQRT(Auslegung!$D$18) -> 0.4442936676 | D48: 0 | J48: Freistrahl, Quelle Bachelorarbeit Warzecha | O48: K2 | P48: 0.5527481542
B49: 4.3 | C49: =$C$3*$G$21*((1/xkr._vx!B49)^xkr._vx!$C$5)*$C$6*SQRT(Auslegung!$D$18) -> 0.4390970717 | D49: 0 | O49: K3 | P49: 17.39700919
B50: 4.4 | C50: =$C$3*$G$21*((1/xkr._vx!B50)^xkr._vx!$C$5)*$C$6*SQRT(Auslegung!$D$18) -> 0.4340786546 | D50: 0
B51: 4.5 | C51: =$C$3*$G$21*((1/xkr._vx!B51)^xkr._vx!$C$5)*$C$6*SQRT(Auslegung!$D$18) -> 0.4292284615 | D51: 0 | J51: Abstand | K51: Temperaturdifferenz | M51: Volumenstrom | N51: Schlitzanzahl
B52: 4.6 | C52: =$C$3*$G$21*((1/xkr._vx!B52)^xkr._vx!$C$5)*$C$6*SQRT(Auslegung!$D$18) -> 0.4245372992 | D52: 0 | J52: m | K52: K | M52: m³/h
B53: 4.7 | C53: =$C$3*$G$21*((1/xkr._vx!B53)^xkr._vx!$C$5)*$C$6*SQRT(Auslegung!$D$18) -> 0.4199966628 | D53: 0 | J53: =Auslegung!D54-Auslegung!D55 -> 2.2 | K53: =G6 -> 0.01 | M53: =G21 -> 128.0769231 | N53: =G20 -> 2 | P53: =$P$47*M53*(SQRT($P$48/J53)-SQRT((K53*$P$49)/(M53^2)*(2.83*SQRT(J53/$P$48)-1)))*SQRT(N53) -> 0.8066263563
B54: 4.8 | C54: =$C$3*$G$21*((1/xkr._vx!B54)^xkr._vx!$C$5)*$C$6*SQRT(Auslegung!$D$18) -> 0.4155986708 | D54: 0
B55: 4.9 | C55: =$C$3*$G$21*((1/xkr._vx!B55)^xkr._vx!$C$5)*$C$6*SQRT(Auslegung!$D$18) -> 0.4113360077 | D55: 0
B56: 5 | C56: =$C$3*$G$21*((1/xkr._vx!B56)^xkr._vx!$C$5)*$C$6*SQRT(Auslegung!$D$18) -> 0.4072018725 | D56: 0
B57: 5.1 | C57: =$C$3*$G$21*((1/xkr._vx!B57)^xkr._vx!$C$5)*$C$6*SQRT(Auslegung!$D$18) -> 0.4031899336 | D57: 0
B58: 5.2 | C58: =$C$3*$G$21*((1/xkr._vx!B58)^xkr._vx!$C$5)*$C$6*SQRT(Auslegung!$D$18) -> 0.3992942873 | D58: 0
B59: 5.3 | C59: =$C$3*$G$21*((1/xkr._vx!B59)^xkr._vx!$C$5)*$C$6*SQRT(Auslegung!$D$18) -> 0.3955094219 | D59: 0 | O59: K1 | P59: 0.1735197876
B60: 5.4 | C60: =$C$3*$G$21*((1/xkr._vx!B60)^xkr._vx!$C$5)*$C$6*SQRT(Auslegung!$D$18) -> 0.3918301845 | D60: 0 | O60: K2 | P60: 0.09156740805
B61: 5.5 | C61: =$C$3*$G$21*((1/xkr._vx!B61)^xkr._vx!$C$5)*$C$6*SQRT(Auslegung!$D$18) -> 0.3882517517 | D61: 0 | J61: Wandstrahl, Quelle Bachelorarbeit Warzecha | O61: K3 | P61: 1.609834693e-08
B62: 5.6 | C62: =$C$3*$G$21*((1/xkr._vx!B62)^xkr._vx!$C$5)*$C$6*SQRT(Auslegung!$D$18) -> 0.3847696029 | D62: 0 | O62: K4 | P62: 0.005293197511
B63: 5.7 | C63: =$C$3*$G$21*((1/xkr._vx!B63)^xkr._vx!$C$5)*$C$6*SQRT(Auslegung!$D$18) -> 0.3813794962 | D63: 0 | O63: K5 | P63: 0.03173911917
B64: 5.8 | C64: =$C$3*$G$21*((1/xkr._vx!B64)^xkr._vx!$C$5)*$C$6*SQRT(Auslegung!$D$18) -> 0.3780774471 | D64: 0
B65: 5.9 | C65: =$C$3*$G$21*((1/xkr._vx!B65)^xkr._vx!$C$5)*$C$6*SQRT(Auslegung!$D$18) -> 0.3748597082 | D65: 0
B66: 6 | C66: =$C$3*$G$21*((1/xkr._vx!B66)^xkr._vx!$C$5)*$C$6*SQRT(Auslegung!$D$18) -> 0.3717227517 | D66: 0 | J66: Abstand | K66: Temperaturdifferenz | M66: Volumenstrom | N66: Schlitzanzahl
B67: 7 | C67: =$C$3*$G$21*((1/xkr._vx!B67)^xkr._vx!$C$5)*$C$6*SQRT(Auslegung!$D$18) -> 0.3441483951 | D67: =1/B67*$J$11 -> 0 | J67: m | K67: K | M67: m³/h
B68: 8 | C68: =$C$3*$G$21*((1/xkr._vx!B68)^xkr._vx!$C$5)*$C$6*SQRT(Auslegung!$D$18) -> 0.3219213462 | D68: 0 | J68: =J53 -> 2.2 | K68: =K53 -> 0.01 | M68: =M53 -> 128.0769231 | N68: =N53 -> 2 | P68: =($P$59*M68*(($P$60/J68)^$P$63-((K68*$P$61)/(M68^2)*(2.83*SQRT(J68/$P$60)-1))^$P$62))*SQRT(N68) -> 1.555568053
B69: 9 | C69: =$C$3*$G$21*((1/xkr._vx!B69)^xkr._vx!$C$5)*$C$6*SQRT(Auslegung!$D$18) -> 0.3035103558 | D69: 0
B70: 10 | C70: =$C$3*$G$21*((1/xkr._vx!B70)^xkr._vx!$C$5)*$C$6*SQRT(Auslegung!$D$18) -> 0.2879352054 | D70: 0
B71: 11 | C71: =$C$3*$G$21*((1/xkr._vx!B71)^xkr._vx!$C$5)*$C$6*SQRT(Auslegung!$D$18) -> 0.2745354464 | D71: 0
B72: 12 | C72: =$C$3*$G$21*((1/xkr._vx!B72)^xkr._vx!$C$5)*$C$6*SQRT(Auslegung!$D$18) -> 0.2628476785 | D72: 0
B73: 13 | C73: =$C$3*$G$21*((1/xkr._vx!B73)^xkr._vx!$C$5)*$C$6*SQRT(Auslegung!$D$18) -> 0.2525358809 | D73: 0
B74: 14 | C74: =$C$3*$G$21*((1/xkr._vx!B74)^xkr._vx!$C$5)*$C$6*SQRT(Auslegung!$D$18) -> 0.2433496639 | D74: 0
B75: 15 | C75: =$C$3*$G$21*((1/xkr._vx!B75)^xkr._vx!$C$5)*$C$6*SQRT(Auslegung!$D$18) -> 0.2350981107 | D75: 0
B76: 16 | C76: =$C$3*$G$21*((1/xkr._vx!B76)^xkr._vx!$C$5)*$C$6*SQRT(Auslegung!$D$18) -> 0.2276327669 | D76: 0
B77: 17 | C77: =$C$3*$G$21*((1/xkr._vx!B77)^xkr._vx!$C$5)*$C$6*SQRT(Auslegung!$D$18) -> 0.2208362216 | D77: 0
B78: 18 | C78: =$C$3*$G$21*((1/xkr._vx!B78)^xkr._vx!$C$5)*$C$6*SQRT(Auslegung!$D$18) -> 0.2146142308 | D78: 0
B79: 19 | C79: =$C$3*$G$21*((1/xkr._vx!B79)^xkr._vx!$C$5)*$C$6*SQRT(Auslegung!$D$18) -> 0.2088901531 | D79: 0
B80: 20 | C80: =$C$3*$G$21*((1/xkr._vx!B80)^xkr._vx!$C$5)*$C$6*SQRT(Auslegung!$D$18) -> 0.2036009363 | D80: 0
B81: 21 | C81: =$C$3*$G$21*((1/xkr._vx!B81)^xkr._vx!$C$5)*$C$6*SQRT(Auslegung!$D$18) -> 0.1986941685 | D81: 0
B82: 22 | C82: =$C$3*$G$21*((1/xkr._vx!B82)^xkr._vx!$C$5)*$C$6*SQRT(Auslegung!$D$18) -> 0.1941258759 | D82: 0
B83: 23 | C83: =$C$3*$G$21*((1/xkr._vx!B83)^xkr._vx!$C$5)*$C$6*SQRT(Auslegung!$D$18) -> 0.189858852 | D83: 0
B84: 24 | C84: =$C$3*$G$21*((1/xkr._vx!B84)^xkr._vx!$C$5)*$C$6*SQRT(Auslegung!$D$18) -> 0.1858613759 | D84: 0

Sheet Eingabe (hidden)
E2: 1 | F2: = Produktgruppe emcoair
F3: KSW | G3: Artikel
G4: 1 | H4: Schlitzanzahl | I4: 1 Schlitz
G5: 2 | I5: 2 Schlitze
G6: X | I6: Sonder
H7: K | I7: Funktion | J7: Zuluft / Abluft Kombination
H8: Z | J8: Zuluft
H9: A | J9: Abluft
I10: 0500 | J10: Breite
I11: 0600
I12: 0700
I13: 0800
I14: 0900
I15: 1000
I16: 1100
I17: 1200
J18: A | K18: Werkstoff | L18: Aluminium
K21: 9010 | L21: Oberfläche Luftdurchlass | M21: RAL 9010 glänzend
K22: E6C0 | M22: Aluminium naturfarbig eloxiert
K23: XXXX | M23: RAL-Ton **** glänzend
K24: SSSS | M24: Sonderlackierung
L25: S | M25: Farbe Luftlenkelement | N25: schwarz
L26: W | N26: weiß
L27: G | N27: grau
M28: C | N28: Luftlenkeinstellung | O28: DE
M29: S | O29: Sonder
N30: V | O30: Werkstoff Anschlusskasten | P30: Stahl verzinkt
N31: 0 | P31: ohne Anschlusskasten
O32: 1 | P32: Drossel | Q32: mit FBD
O33: 0 | Q33: ohne FBD
P34: B1 | Q34: Innenauskleidung | R34: Dämmung Baustoffklasse B1
P35: A2 | R35: Dämmung Baustoffklasse A2
Q36: 1 | R36: Stutzenanzahl | S36: 1 Stutzen
Q37: x | S37: Sonder
R38: 100 | S38: Stutzendurchmesser | T38: 98 mm
R39: 080 | T39: 78 mm
R40: xxx | T40: Sonder
E41: =E2 -> 1 | F41: =F3 -> KSW | G41: =G4 -> 1 | H41: 1 | I41: =I10 -> 0500 | J41: =J18 -> A | K41: =K21 -> 9010 | L41: =L25 -> S | M41: =M28 -> C | N41: =N30 -> V | O41: =O32 -> 1 | P41: =P34 -> B1 | Q41: =Q36 -> 1 | R41: =R38 -> 100
A45: Schwarz | B45: S
A46: weiß | B46: W
A47: naturfarbig eloxiert | B47: K
A48: weiß (RAL 9010) bepulvert | B48: L
A49: Anschlusskasten ohne Mengeneinstellung | B49: AK1
A50: Anschlusskasten mit Mengeneinstellung* | B50: AK2

Sheet SAL35-CAP (hidden)
A1: Übergabedaten: | C1: Gewählter Durchlass | E1: =CONCATENATE(Auslegung!$D$12,Auslegung!$D$48) -> SAL 351 | G1: Schlitzzahl | H1: =Auslegung!$D$18 -> 2
C2: Volumenstrom | E2: =Auslegung!$D$49 -> 333
C3: Temperaturdifferenz | E3: =Auslegung!$D$52-Auslegung!$D$51 -> 0
C4: SAL 35 | D4: SAL 35 | E4: SAL 35 | F4: SAL 35
C5: hochdiffus | D5: divergent | E5: vertikal | F5: einseitig | L5: rote Markierung: | N5: Datensatz von CAP2000
C6: =CONCATENATE(C4,C7) -> SAL 351 | D6: =CONCATENATE(D4,D7) -> SAL 352 | E6: =CONCATENATE(E4,E7) -> SAL 353 | F6: =CONCATENATE(F4,F7) -> SAL 354 | I6: 1
C7: 1 | D7: 2 | E7: 3 | F7: 4 | I7: 2
A8: Konstante | B8: K011 | C8: 0.00252 | D8: 0.00252 | E8: 0.003858 | F8: 0.002352 | I8: 3
B9: K012 | C9: 1.92 | D9: 1.92 | E9: 1.889 | F9: 1.92 | I9: 4
B10: K021 | C10: -75.6 | D10: -75.6 | E10: -88.76 | F10: -75.6 | I10: 5 | R10: SAL 35 | S10: SAL 35 | T10: SAL 35 | U10: SAL 35
B11: K022 | C11: 53.72 | D11: 53.72 | E11: 59.88 | F11: 53.72 | I11: 6 | N11: Datensätze vor 2000 | R11: hochdiffus | S11: divergent | T11: vertikal | U11: einseitig
B12: K031 | C12: 0.005027 | D12: 0.005027 | F12: 0.005027 | I12: 7 | R12: =CONCATENATE(R10,R13) -> SAL 351 | S12: =CONCATENATE(S10,S13) -> SAL 352 | T12: =CONCATENATE(T10,T13) -> SAL 353 | U12: =CONCATENATE(U10,U13) -> SAL 354
B13: K032 | C13: 5.8 | D13: 5.8 | F13: 5.8 | I13: 8 | R13: 1 | S13: 2 | T13: 3 | U13: 4
B14: K033 | C14: 0.5 | D14: 0.5 | F14: 0.5 | I14: 9 | P14: Konstante | Q14: K011 | R14: 0.00252 | S14: 0.00252 | T14: 0.003858 | U14: 0.002352
B15: K034 | C15: 1 | D15: 1 | F15: 1 | I15: 10 | Q15: K012 | R15: 1.92 | S15: 1.92 | T15: 1.889 | U15: 1.92
B16: K041 | C16: 0.0882 | D16: 0.0882 | F16: 0.0882 | I16: 11 | Q16: K021 | R16: -75.6 | S16: -75.6 | T16: -88.76 | U16: -75.6
B17: K042 | C17: 0.643 | D17: 0.643 | F17: 0.643 | I17: 12 | Q17: K022 | R17: 53.72 | S17: 53.72 | T17: 59.88 | U17: 53.72
B18: K043 | C18: 1.287 | D18: 1.287 | F18: 1.287 | I18: 13 | Q18: K031 | R18: 0.010054 | S18: 0.010054 | U18: 0.005027
B19: K051 | C19: 0.09932 | D19: 0.09932 | E19: 0.07946 | F19: 0.04966 | I19: 14 | Q19: K032 | R19: 5.8 | S19: 5.8 | U19: 5.8
B20: K052 | C20: 0.5 | D20: 0.5 | E20: 0.5 | F20: 0.5 | I20: 15 | Q20: K033 | R20: 0.5 | S20: 0.5 | U20: 0.5
B21: K071 | E21: 0.008043 | I21: 16 | Q21: K034 | R21: 0.707 | S21: 0.707 | U21: 0.707
B22: K072 | E22: 0.5 | I22: 17 | Q22: K041 | R22: 0.0882 | S22: 0.0882 | U22: 0.0882
B23: K081 | E23: 0.02037 | I23: 18 | Q23: K042 | R23: 0.643 | S23: 0.643 | U23: 0.643
B24: K082 | E24: 0.643 | I24: 19 | Q24: K043 | R24: 1.287 | S24: 1.287 | U24: 1.287
B25: K083 | E25: 1.287 | I25: 20 | Q25: K051 | R25: 0.09932 | S25: 0.09932 | T25: 0.07946 | U25: 0.04966
B26: K091 | C26: 0 | D26: 0 | F26: 0 | I26: 21 | Q26: K052 | R26: 0.5 | S26: 0.5 | T26: 0.5 | U26: 0.5
B27: K092 | C27: 23.5 | D27: 23.5 | F27: 23.5 | I27: 22 | Q27: K071 | T27: 0.008043
B28: K093 | C28: 2.5 | D28: 2.5 | F28: 2.5 | I28: 23 | Q28: K072 | T28: 0.5
B29: K094 | C29: 0 | D29: 0 | F29: 0 | I29: 24 | Q29: K081 | T29: 0.02037
B30: K101 | C30: -0.693 | D30: -0.693 | E30: -0.693 | F30: -0.693 | I30: 25 | Q30: K082 | T30: 0.643
B31: K102 | C31: 24 | D31: 24 | E31: 24 | F31: 24 | I31: 26 | Q31: K083 | T31: 1.287
B32: K103 | C32: 0.007 | D32: 0.007 | E32: 0.007 | F32: 0.007 | I32: 27 | Q32: K091 | R32: 0 | S32: 0 | U32: 0
B33: K104 | C33: 0.01 | D33: 0.01 | E33: 0.01 | F33: 0.01 | I33: 28 | Q33: K092 | R33: 23.5 | S33: 23.5 | U33: 47
B34: K021Abluft | I34: 29 | Q34: K093 | R34: 2.5 | S34: 2.5 | U34: 2.5
B35: K022Abluft | I35: 30 | Q35: K094 | R35: 0 | S35: 0 | U35: 0
B36: K011Abluft | I36: 31 | Q36: K101 | R36: -0.693 | S36: -0.693 | T36: -0.693 | U36: -0.693
B37: K012Abluft | I37: 32 | Q37: K102 | R37: 24 | S37: 24 | T37: 24 | U37: 24
C38: =IFERROR(HLOOKUP($E$1,$C$6:$H$36,#REF!,FALSE),"") ->  | Q38: K103 | R38: 0.007 | S38: 0.007 | T38: 0.007 | U38: 0.007
C39: =IFERROR(HLOOKUP($E$1,$C$6:$H$36,I7,FALSE),"") -> 1 | Q39: K104 | R39: 0.01 | S39: 0.01 | T39: 0.01 | U39: 0.01
A40: Rückgabe | B40: K011 | C40: =IFERROR(HLOOKUP($E$1,$C$6:$H$36,I8,FALSE),"") -> 0.00252
B41: K012 | C41: 1.92
B42: K021 | C42: -75.6
B43: K022 | C43: 53.72
B44: K031 | C44: 0.005027
B45: K032 | C45: 5.8
B46: K033 | C46: 0.5
B47: K034 | C47: 1
B48: K041 | C48: 0.0882
B49: K042 | C49: 0.643
B50: K043 | C50: 1.287
B51: K051 | C51: 0.09932
B52: K052 | C52: 0.5
B53: K071 | C53: 0
B54: K072 | C54: 0
B55: K081 | C55: 0
B56: K082 | C56: 0
B57: K083 | C57: 0
B58: K091 | C58: 0
B59: K092 | C59: 23.5
B60: K093 | C60: 2.5
B61: K094 | C61: 0
B62: K101 | C62: -0.693
B63: K102 | C63: 24
B64: K103 | C64: 0.007
B65: K104 | C65: 0.01
B66: K021Abluft | C66: 0
B67: K022Abluft | C67: 0
B68: K011Abluft | C68: 0
B69: K012Abluft

Sheet SAL50-CAP (hidden)
A1: Übergabedaten: | C1: Gewählter Durchlass | E1: =CONCATENATE(Auslegung!$D$12,Auslegung!$D$48) -> SAL 351
C2: Volumenstrom | E2: =Auslegung!$D$49 -> 333 | M2: k41 | N2: 0.1071027043
C3: Temperaturdifferenz | E3: =Auslegung!$D$52-Auslegung!$D$51 -> 0 | M3: k42 | N3: 0.6375296099
C4: SAL 50 | D4: SAL 50 | E4: SAL 50 | F4: SAL 50 | M4: k43 | N4: 1.135276761
C5: 1 | D5: 2 | E5: 3 | F5: 4 | I5: n | J5: V°spez | K5: DJ | L5: xkrit | M5: sum | N5: =SUM(N6:N28) -> 28.03055235
C6: =CONCATENATE(C4,C5,) -> SAL 501 | D6: =CONCATENATE(D4,D5,) -> SAL 502 | E6: SAL 503 | F6: SAL 504 | G6: 1 | I6: 1 | J6: 250 | K6: 10 | L6: 11.88 | M6: =$N$2*SQRT(I6)*J6^$N$4*(1/K6^$N$3) -> 13.01956256 | N6: =(M6-L6)^2 -> 1.298602822
C7: hochdiffus | D7: divergent | E7: vertikal | F7: einseitig | G7: 2 | I7: 1 | J7: 194.44 | K7: 10 | L7: 8.6 | M7: =$N$2*SQRT(I7)*J7^$N$4*(1/K7^$N$3) -> 9.787593937 | N7: =(M7-L7)^2 -> 1.410379359 | R7: Originalkonstanten
A8: Konstante | B8: K011 | C8: 0.0007206 | D8: 0.000808 | E8: 0.001118 | F8: 0.000808 | G8: 3 | I8: 1 | J8: 194.44 | K8: 6 | L8: 11.94 | M8: 13.55536106 | N8: 2.609391367 | R8: Konstante | S8: K011 | T8: 0.000808 | U8: 0.000808 | V8: 0.001118 | W8: 0.000808
B9: K012 | C9: 1.961 | D9: 1.946 | E9: 1.926 | F9: 1.946 | G9: 4 | I9: 1 | J9: 277.78 | K9: 4.2 | L9: 23.77 | M9: 25.51158759 | N9: 3.033127322 | S9: K012 | T9: 1.946 | U9: 1.946 | V9: 1.926 | W9: 1.946
B10: K021 | C10: -104.9 | D10: -104.9 | E10: -114.23 | F10: -104.9 | G10: 5 | I10: 1 | J10: 277.78 | K10: 12 | L10: 12.1 | M10: 13.06373505 | N10: 0.9287852481 | S10: K021 | T10: -104.9 | U10: -104.9 | V10: -114.23 | W10: -104.9
B11: K022 | C11: 60.3 | D11: 60.3 | E11: 64.78 | F11: 60.3 | G11: 6 | I11: 2 | J11: 125 | K11: 6 | L11: 10.56 | M11: 11.6089831 | N11: 1.100365541 | S11: K022 | T11: 60.3 | U11: 60.3 | V11: 64.78 | W11: 60.3
B12: K031 | C12: 0.00388 | D12: 0.00388 | F12: 0.00388 | G12: 7 | I12: 2 | J12: 250 | K12: 6 | L12: 25.78 | M12: 25.50037325 | N12: 0.07819111809 | S12: K031 | T12: 0.00388 | U12: 0.00388 | W12: 0.00388
B13: K032 | C13: 5.8 | D13: 5.8 | F13: 5.8 | G13: 8 | I13: 2 | J13: 208.33 | K13: 6 | L13: 20.9 | M13: 20.73223009 | N13: 0.02814674389 | S13: K032 | T13: 5.8 | U13: 5.8 | W13: 5.8
B14: K033 | C14: 0.5 | D14: 0.5 | F14: 0.5 | G14: 9 | I14: 2 | J14: 104.17 | K14: 8.2 | L14: 7.43 | M14: 7.734431577 | N14: 0.0926785852 | S14: K033 | T14: 0.5 | U14: 0.5 | W14: 0.5
B15: K034 | C15: 1 | D15: 1 | F15: 1 | G15: 10 | I15: 2 | J15: 104.17 | K15: 7 | L15: 6.44 | M15: 8.555330017 | N15: 4.474621081 | S15: K034 | T15: 0.707 | U15: 0.707 | W15: 0.707
B16: K041 | C16: 0.1071027043 | D16: 0.04283 | F16: 0.1071027043 | G16: 11 | I16: 2 | J16: 208.33 | K16: 1 | L16: 64.52 | M16: 64.97413151 | N16: 0.2062354261 | S16: K041 | T16: 0.04283 | U16: 0.04283 | W16: 0.04283
B17: K042 | C17: 0.6375296099 | D17: 0.643 | F17: 0.6375296099 | G17: 12 | I17: 3 | J17: 222.22 | K17: 4 | L17: 37.32 | M17: 35.38167248 | N17: 3.757113559 | S17: K042 | T17: 0.643 | U17: 0.643 | W17: 0.643
B18: K043 | C18: 1.135276761 | D18: 1.287 | F18: 1.135276761 | G18: 13 | I18: 3 | J18: 111.11 | K18: 4 | L18: 15.29 | M18: 16.10742062 | N18: 0.6681764654 | S18: K043 | T18: 1.287 | U18: 1.287 | W18: 1.287
B19: K051 | C19: 0.2455 | D19: 0.0382 | E19: 0.06112 | F19: 0.0382 | G19: 14 | I19: 3 | J19: 166.67 | K19: 2.6 | L19: 34 | M19: 33.59126661 | N19: 0.1670629843 | S19: K051 | T19: 0.0382 | U19: 0.0382 | V19: 0.06112 | W19: 0.0382
B20: K052 | C20: 1 | D20: 0.5 | E20: 0.5 | F20: 0.5 | G20: 15 | I20: 3 | J20: 166.67 | K20: 10 | L20: 14.3 | M20: 14.23162746 | N20: 0.004674804726 | S20: K052 | T20: 0.5 | U20: 0.5 | V20: 0.5 | W20: 0.5
B21: K071 | E21: 0.006221 | G21: 16 | I21: 3 | J21: 166.67 | K21: 12 | L21: 12.7 | M21: 12.6699289 | N21: 0.0009042711135 | S21: K071 | V21: 0.006221
B22: K072 | E22: 0.5 | G22: 17 | I22: 4 | J22: 151.52 | K22: 6 | L22: 21.14 | M22: 20.42550696 | N22: 0.5105002988 | S22: K072 | V22: 0.5
B23: K081 | E23: 0.009892 | G23: 18 | I23: 4 | J23: 101.01 | K23: 6 | L23: 12.54 | M23: 12.88974305 | N23: 0.1223202044 | S23: K081 | V23: 0.009892
B24: K082 | E24: 0.643 | G24: 19 | I24: 4 | J24: 189.39 | K24: 4.8 | L24: 32.52 | M24: 30.33538425 | N24: 4.772545966 | S24: K082 | V24: 0.643
B25: K083 | E25: 1.287 | G25: 20 | I25: 4 | J25: 126.26 | K25: 4.8 | L25: 19.3 | M25: 19.14419839 | N25: 0.024274141 | S25: K083 | V25: 1.287
B26: K091 | C26: 0 | D26: 0 | F26: 0 | G26: 21 | I26: 4 | J26: 126.26 | K26: 11 | L26: 11.32 | M26: 11.28313993 | N26: 0.001358664634 | S26: K091 | T26: 0 | U26: 0 | W26: 0
B27: K092 | C27: 61 | D27: 61 | F27: 61 | G27: 22 | I27: 4 | J27: 189.39 | K27: 11 | L27: 19.08 | M27: 17.87896147 | N27: 1.442493554 | S27: K092 | T27: 61 | U27: 61 | W27: 61
B28: K093 | C28: 2.5 | D28: 2.5 | F28: 2.5 | G28: 23 | I28: 1 | J28: 250 | K28: 10 | L28: 11.88 | M28: 13.01956256 | N28: 1.298602822 | S28: K093 | T28: 2.5 | U28: 2.5 | W28: 2.5
B29: K094 | C29: 0 | D29: 0 | F29: 0 | G29: 24 | S29: K094 | T29: 0 | U29: 0 | W29: 0
B30: K101 | C30: -0.693 | D30: -0.693 | E30: -0.693 | F30: -0.693 | G30: 25 | S30: K101 | T30: -0.693 | U30: -0.693 | V30: -0.693 | W30: -0.693
B31: K102 | C31: 24 | D31: 24 | E31: 24 | F31: 24 | G31: 26 | S31: K102 | T31: 24 | U31: 24 | V31: 24 | W31: 24
B32: K103 | C32: 0.012 | D32: 0.012 | E32: 0.012 | F32: 0.012 | G32: 27 | S32: K103 | T32: 0.012 | U32: 0.012 | V32: 0.012 | W32: 0.012
B33: K104 | C33: 0.01 | D33: 0.01 | E33: 0.01 | F33: 0.01 | G33: 28 | S33: K104 | T33: 0.01 | U33: 0.01 | V33: 0.01 | W33: 0.01
B34: K021Abluft
B35: K022Abluft
B36: K011Abluft
B37: K012Abluft
C38: =IFERROR(HLOOKUP($E$1,$C$6:$F$37,G6,FALSE),"") -> 
C39: =IFERROR(HLOOKUP($E$1,$C$6:$F$37,G7,FALSE),"") -> 
A40: Rückgabe | B40: K011
B41: K012 | T41: 0.0066795
B42: K021
B43: K022
B44: K031
B45: K032
B46: K033
B47: K034
B48: K041
B49: K042
B50: K043
B51: K051
B52: K052
B53: K071
B54: K072
B55: K081
B56: K082
B57: K083
B58: K091
B59: K092
B60: K093
B61: K094
B62: K101
B63: K102
B64: K103
B65: K104
B66: K021Abluft
B67: K022Abluft
B68: K011Abluft
B69: K012Abluft

Sheet SALS-CAP (hidden)
A1: Übergabedaten: | C1: Gewählter Durchlass | E1: =CONCATENATE(Auslegung!$D$12,Auslegung!$D$48) -> SAL 351
C2: Volumenstrom | E2: =Auslegung!$D$49 -> 333
C3: Temperaturdifferenz | E3: =Auslegung!$D$52-Auslegung!$D$51 -> 0
C4: SAL-S | D4: SAL-S | E4: SAL-S | F4: SAL-S
C5: 1 | D5: 2 | E5: 3 | F5: 4
C6: =CONCATENATE(C4,C5,) -> SAL-S1 | D6: =CONCATENATE(D4,D5,) -> SAL-S2 | E6: SAL-S3 | F6: SAL-S4 | G6: 1
C7: hochdiffus | D7: divergent | E7: vertikal | F7: einseitig | G7: 2
A8: Konstante | B8: K011 | C8: 0.00266 | D8: 0.00388 | E8: 0.00492 | F8: 0.004 | G8: 3
B9: K012 | C9: 2 | D9: 2 | E9: 2 | F9: 2 | G9: 4
B10: K021 | C10: -90.8 | D10: -88.1612 | E10: -86.14059 | F10: -84.65 | G10: 5
B11: K022 | C11: 61.83 | D11: 61.83 | E11: 61.83 | F11: 56.22 | G11: 6
B12: K031 | C12: 0.00484295 | D12: 0.0040702 | E12: 0.0036198 | F12: 0.0064838 | G12: 7
B13: K032 | C13: 4.37226 | D13: 2.91 | E13: 2.17604 | F13: 2.8017116 | G13: 8
B14: K033 | C14: 0.5 | D14: 0.5 | E14: 0.5 | F14: 0.9230287 | G14: 9
B15: K034 | C15: 0.707 | D15: 0.707 | E15: 0.707 | F15: 1 | G15: 10
B16: K041 | C16: 0.01639 | D16: 0.01346 | E16: 0.001173 | F16: 0.04636 | G16: 11
B17: K042 | C17: 0.643 | D17: 0.643 | E17: 0.643 | F17: 0.27182 | G17: 12
B18: K043 | C18: 1.287 | D18: 1.287 | E18: 1.287 | F18: 1.0029 | G18: 13
B19: K051 | C19: 0.04966 | D19: 0.04966 | E19: 0.04966 | F19: 0.1239 | G19: 14
B20: K052 | C20: 0.5 | D20: 0.5 | E20: 0.5 | F20: 0.263 | G20: 15
B21: K071 | G21: 16
B22: K072 | G22: 17
B23: K081 | G23: 18
B24: K082 | G24: 19
B25: K083 | G25: 20
B26: K091 | F26: 0 | G26: 21
B27: K092 | C27: 47 | D27: 47 | E27: 47 | F27: 240 | G27: 22
B28: K093 | C28: 2.5 | D28: 2.5 | E28: 2.5 | F28: 3 | G28: 23
B29: K094 | C29: 0 | D29: 0 | E29: 0 | F29: 0 | G29: 24
B30: K101 | C30: -0.693 | D30: -0.693 | E30: -0.693 | F30: -0.693 | G30: 25
B31: K102 | C31: 24 | D31: 24 | E31: 24 | F31: 33 | G31: 26
B32: K103 | C32: 0.007 | D32: 0.007 | E32: 0.007 | F32: 0.027 | G32: 27
B33: K104 | C33: 0.01 | D33: 0.01 | E33: 0.01 | F33: 0.01 | G33: 28
B34: K021Abluft
B35: K022Abluft
B36: K011Abluft
B37: K012Abluft
C38: =IFERROR(HLOOKUP($E$1,$C$6:$F$37,G6,FALSE),"") -> 
C39: =IFERROR(HLOOKUP($E$1,$C$6:$F$37,G7,FALSE),"") -> 
A40: Rückgabe | B40: K011
B41: K012 | T41: 0.0066795
B42: K021
B43: K022
B44: K031
B45: K032
B46: K033
B47: K034
B48: K041
B49: K042
B50: K043
B51: K051
B52: K052
B53: K071
B54: K072
B55: K081
B56: K082
B57: K083
B58: K091
B59: K092
B60: K093
B61: K094
B62: K101
B63: K102
B64: K103
B65: K104
B66: K021Abluft
B67: K022Abluft
B68: K011Abluft
B69: K012Abluft
